Cogmind - Beta 15 @@@ ROGUE MODE // 2025.07.17 @ 13:16:15 Player: saltine Result: Fortifying 0b10! Performance ------------- Evolutions (9) 4500 Regions Visited (29) 5800 Robots Destroyed (395) 1975 Value Destroyed (25144) 25144 Prototype IDs (111) 2220 Alien Tech Used (2) 400 Bonus (26462) 26462 TOTAL SCORE: 66501 Bonus ------- High Alert Combat Kills 568 Follower Combat Kills 2178 Network Hubs Disabled 200 Aligned with FarCom 300 Met Zhirov 300 Met Warlord at Base 500 MAIN.C Attacked Warlord 500 Warlord Defense Kills 1076 Built Enhanced Grunts 300 Met R17 at Cetus 500 Met R17 at Research 2000 Met Warlord at Research 2000 Invited to Help at Command 2000 Met Sigix 2000 Met MAIN.C 5000 Destroyed MAIN.C Shell 5000 Win 3000 Friendly Fire -960 Cogmind --------- Core Integrity 745/1600 Matter 17/300 Energy 240/240 System Corruption 26% Temperature Cool (0) Movement Walking (117) Location By MAIN.C's Side Parts ------- > --- POWER (3) -------- Zero-point Reactor > --- PROPULSION (7) --- Enhanced Biometal Leg Centrium Leg Centrium Leg Centrium Leg High-density Centrium Leg High-density Centrium Leg High-density Centrium Leg > --- UTILITY (11) ----- Experimental Heat Sink Experimental Heat Sink Huge Storage Unit Experimental Targeting Computer Experimental Targeting Computer Experimental Core Analyzer Experimental Weapon Cycler Graphene Brace Experimental Force Field > --- WEAPON (4) ------- Hypercooled Linear Accelerator Graviton Cannon > --- INVENTORY (25) --- Vortex Chain Reactor Enhanced Biometal Leg Enhanced Biometal Leg Enhanced Biometal Leg Experimental Biometal Leg Experimental Coolant Injector Advanced Matter Compressor (53) Advanced Force Field Advanced Point Defense System Subatomic Replicator Improved Potential Cannon Hypervelocity Multirail Micro-nuke Launcher Z-bomb Delivery System Peak State ------------ > --- POWER ------------ Zero-point Reactor Vortex Chain Reactor > --- PROPULSION ------- Enhanced Biometal Leg Enhanced Biometal Leg Enhanced Biometal Leg High-density Centrium Leg High-density Centrium Leg High-density Centrium Leg Experimental Biometal Leg > --- UTILITY ---------- Experimental Coolant Injector Huge Storage Unit Spectral Analyzer Experimental Targeting Computer Experimental Targeting Computer Experimental Core Analyzer Experimental Weapon Cycler Heavy Regenerative Plating Experimental Force Field Experimental System Purifier > --- WEAPON ----------- Hypercooled Linear Accelerator Hypercooled Linear Accelerator Hypercooled Linear Accelerator Hypercooled Linear Accelerator > --- INVENTORY -------- Vortex Chain Reactor Enhanced Biometal Leg Enhanced Biometal Leg Centrium Leg Centrium Leg Centrium Leg Experimental Biometal Leg Advanced Matter Compressor Advanced Kinecellerator Advanced Weapon Cycler Experimental Phase Shifter Graphene Brace Advanced Force Field Advanced Point Defense System High-powered Tractor Beam Transdimensional Reconstructor Subatomic Replicator Cooled Nova Cannon Improved Potential Cannon Hypervelocity Multirail Linear Accelerator Micro-nuke Launcher Z-bomb Delivery System [Rating: 248] Favorites ----------- Power Quantum Reactor Engine Ion Engine Power Core Fission Core Reactor Quantum Reactor Propulsion Centrium Heavy Treads Treads Centrium Heavy Treads Leg Enhanced Biometal Leg Flight Unit Improved Flight Unit Utility Huge Storage Unit Device Seismic Detector Storage Huge Storage Unit Processor Experimental Targeting Computer Hackware Hacking Suite Protection Medium Regenerative Plating Weapon Advanced KE Penetrator Energy Gun Spread Laser Energy Cannon Cooled Plasma Cannon Ballistic Gun Advanced KE Penetrator Ballistic Cannon Heavy Assault Cannon Launcher Micro-nuke Launcher Special Weapon Mining Laser Impact Weapon Impact Mace Piercing Weapon Lance Build | -11 -10 -10 -10 -9 -8 -8 -8 -8 -6 -6 -6 -6 -6 -5 -5 -5 -5 -4 -4 -4 -4 -4 -3 -3 -3 -2 -2 -1 -1 ------- Run | Yrd Mat Min Exi Min Mat Sto Rec Scr Fac Ext Cet Arc Hub Fac Upp Upp War Pro Fac Upp Upp Zhi Pro Res Qua Res Tes Acc Com Slots Evolved 18 | . . . . . 4 . . . 4 . . . . 2 . . . . 2 . . . . 2 . 2 . 2 . Power 2 | . . . . . . . . . 1 . . . . . . . . . . . . . . . . . . 1 . Propulsion 5 | . . . . . 1 . . . 1 . . . . . . . . . . . . . . 2 . 1 . . . Utility 9 | . . . . . 1 . . . 2 . . . . 2 . . . . 2 . . . . . . 1 . 1 . Weapon 2 | . . . . . 2 . . . . . . . . . . . . . . . . . . . . . . . . Parts Attached 250 | 7 7 5 3 1 28 8 . 6 11 19 12 10 10 7 5 5 6 2 7 1 4 3 2 12 27 7 11 2 22 Power 26 | 1 2 1 . . 2 2 . . 4 1 . 3 1 . . . . . . . . 1 . . 4 . . 1 3 Engine 7 | 1 2 1 . . 2 . . . 1 . . . . . . . . . . . . . . . . . . . . Core 7 | . . . . . . 2 . . 3 1 . 1 . . . . . . . . . . . . . . . . . Reactor 12 | . . . . . . . . . . . . 2 1 . . . . . . . . 1 . . 4 . . 1 3 Propulsion 47 | 2 1 2 . 1 8 1 . . 1 5 4 . 2 . . . . . . . 1 . . . 9 3 2 . 5 Treads 29 | 2 1 2 . 1 6 1 . . 1 5 4 . 2 . . . . . . . 1 . . . 3 . . . . Leg 16 | . . . . . . . . . . . . . . . . . . . . . . . . . 6 3 2 . 5 Wheel . | . . . . . . . . . . . . . . . . . . . . . . . . . . . . . . Hover . | . . . . . . . . . . . . . . . . . . . . . . . . . . . . . . Flight 2 | . . . . . 2 . . . . . . . . . . . . . . . . . . . . . . . . Utility 107 | 2 2 . 1 . 8 1 . 4 5 4 4 4 6 5 3 3 5 2 7 1 2 2 1 4 12 4 5 1 9 Device 65 | 1 . . . . 3 . . 3 3 1 1 3 4 1 . 3 3 2 5 1 2 . 1 4 8 4 3 1 8 Storage 8 | 1 1 . 1 . . . . . . . . 1 . 1 . . . . . . . 1 . . 1 . 1 . . Processor 10 | . . . . . . . . . . . . . . 2 2 . 2 . 1 . . . . . 2 . . . 1 Hackware 6 | . . . . . . . . 1 1 . . . 1 1 . . . . 1 . . . . . 1 . . . . Protection 18 | . 1 . . . 5 1 . . 1 3 3 . 1 . 1 . . . . . . 1 . . . . 1 . . Artifact . | . . . . . . . . . . . . . . . . . . . . . . . . . . . . . . Weapon 70 | 2 2 2 2 . 10 4 . 2 1 9 4 3 1 2 2 2 1 . . . 1 . 1 8 2 . 4 . 5 Energy Gun 5 | 1 . . 1 . . 1 . . . 1 1 . . . . . . . . . . . . . . . . . . Energy Cannon 12 | . . . . . . 1 . . . 4 . 1 . . . 1 1 . . . . . . 1 . . 2 . 1 Ballistic Gun 28 | 1 1 2 1 . 9 2 . . . . 2 2 1 . . 1 . . . . . . . 5 . . 1 . . Ballistic Cannon 12 | . . . . . . . . 2 . 1 . . . . . . . . . . . . 1 2 2 . 1 . 3 Launcher 7 | . . . . . 1 . . . 1 . . . . 1 2 . . . . . 1 . . . . . . . 1 Special Weapon 4 | . 1 . . . . . . . . 2 1 . . . . . . . . . . . . . . . . . . Impact Weapon 1 | . . . . . . . . . . 1 . . . . . . . . . . . . . . . . . . . Slashing Weapon . | . . . . . . . . . . . . . . . . . . . . . . . . . . . . . . Piercing Weapon 1 | . . . . . . . . . . . . . . 1 . . . . . . . . . . . . . . . Special Melee Weapon . | . . . . . . . . . . . . . . . . . . . . . . . . . . . . . . Unidentified Prototypes 44 | . . . . . 2 . . . . . 4 3 2 2 . . 4 . . . . 4 . 1 5 1 5 . 11 Corrupted Parts 6 | . . . . . . . . 1 . . . 2 2 . . . . . . . . . . . . . 1 . . System Corruption 30 | . . . . . . . . 2 . . . 18 8 . . . . . . . . . . . . . 2 . . Parts Lost 30 | . . . . 3 . . . . 1 5 2 . . . 2 1 . 1 . . 1 . . . . . . . 14 Power 3 | . . . . 1 . . . . 1 . . . . . . . . . . . . . . . . . . . 1 Propulsion 6 | . . . . 1 . . . . . 2 . . . . . . . 1 . . . . . . . . . . 2 Utility 13 | . . . . 1 . . . . . 1 1 . . . 2 1 . . . . . . . . . . . . 7 Weapon 8 | . . . . . . . . . . 2 1 . . . . . . . . . 1 . . . . . . . 4 Highest Loss Streak 9 | . . . . 2 . . . . 1 1 2 . . . 1 1 . 1 . . 1 . . . . . . . 9 To Critical Strikes 3 | . . . . . . . . . . . . . . . . . . 1 . . 1 . . . . . . . 1 Average Backups 21 | 3 17 19 19 19 24 22 21 22 23 24 22 21 21 21 20 21 20 20 20 22 21 22 22 21 22 22 22 23 21 Power 1 | . 1 1 1 1 . 1 1 1 1 2 2 2 2 2 2 2 1 1 1 1 1 1 1 1 1 1 1 1 1 Propulsion 4 | 1 8 8 8 7 11 9 6 4 2 2 2 3 3 3 3 3 3 2 2 2 2 2 2 1 3 . 2 3 3 Utility 8 | . 1 2 3 3 7 8 8 9 9 9 8 9 9 8 8 8 9 11 11 13 13 12 12 11 9 10 9 9 8 Weapon 6 | 1 6 7 7 7 5 4 5 6 7 5 7 6 6 6 7 8 6 6 6 6 5 6 6 6 6 7 7 7 6 Tool/Special . | . . . . . . . . . . . . . . . . . . . . . . . . . . . . . . Unused Backups 90 | . 2 1 . 1 11 7 5 6 3 7 7 . 1 2 1 . 4 . 2 . . 1 . 3 13 3 5 . 5 Power 9 | . . . . . 1 . . . 1 2 2 . . . . . 2 . . . . . . . 1 . . . . Propulsion 23 | . 1 1 . 1 5 2 3 4 . 2 2 . . . . . . . . . . . . . 1 . . . 1 Utility 29 | . . . . . 1 2 1 1 . 2 3 . 1 1 . . 2 . 1 . . 1 . 2 4 3 3 . 1 Weapon 27 | . 1 . . . 4 3 1 1 2 1 . . . 1 1 . . . 1 . . . . 1 6 . 2 . 2 Tool/Special 2 | . . . . . . . . . . . . . . . . . . . . . . . . . 1 . . . 1 Average Slot Usage (%) 88 | . 95 100 89 95 98 100 97 74 81 85 88 83 85 87 87 88 87 88 88 89 89 88 89 85 82 99 96 87 87 Engine 2 | . 14 14 14 14 8 3 . . 1 . . . . . . . . . . . . . . . . . . . . Core 2 | . . . . . . 5 9 9 8 13 13 12 5 . . . . . . . . . . . . . . . . Reactor 5 | . . . . . . . . . . . . . 6 11 11 11 11 11 10 10 10 10 10 9 9 8 8 7 7 Treads 16 | . 28 28 28 27 26 27 27 27 24 25 18 13 13 11 11 11 11 11 10 10 10 10 10 14 12 . . . . Leg 2 | . . . . . . . . . . . . . . . . . . . . . . . . . 2 29 27 24 26 Device 10 | . 2 . . 9 3 8 9 9 4 4 8 14 11 14 8 10 10 11 20 21 21 20 21 19 10 17 15 16 16 Storage 6 | . 14 14 14 14 9 9 9 9 6 6 6 6 6 5 5 5 5 5 5 5 5 5 5 4 4 4 4 4 4 Processor 8 | . . . . . . . . . . . . . . 4 8 14 11 17 15 15 15 15 15 14 18 17 17 16 14 Protection 7 | . 7 14 14 . 13 9 9 9 11 10 14 9 12 10 12 7 10 5 5 5 5 5 5 4 4 4 4 4 3 Energy Cannon 1 | . . . . . . 7 8 . . 9 10 7 . 1 . 1 1 . 4 5 . 5 1 . . . . 1 1 Ballistic Gun 16 | . 24 28 5 28 35 24 16 . . . 4 17 24 20 20 18 20 23 16 15 20 15 16 15 18 16 14 14 3 Ballistic Cannon 2 | . . . . . . . . 11 12 6 . . . . . . . . . . . . 2 2 . . 1 . 9 Peak Build Rating 248 | 7 9 11 11 11 34 37 38 41 58 68 112 123 139 148 146 137 146 150 163 168 170 167 171 186 191 210 216 237 248 Average Rating 113 | 5 8 9 9 10 24 36 36 34 51 58 90 113 125 137 138 134 141 146 159 162 168 165 165 183 187 204 208 230 231 On Entrance 107 | . 7 9 11 10 9 34 37 26 39 58 65 112 122 133 140 135 135 146 145 160 168 167 165 166 185 186 207 214 230 Naked Turns . | . . . . . . . . . . . . . . . . . . . . . . . . . . . . . . Heaviest Build 234 | 15 52 55 91 53 108 110 109 118 138 158 165 156 162 162 165 155 170 147 166 150 166 150 168 172 171 170 191 198 234 Greatest Support 240 | 40 40 40 40 40 66 66 66 66 94 108 160 160 160 160 160 160 160 160 160 160 160 160 160 240 240 205 210 210 216 Greatest Overweight (x) 2 | . 1 1 2 1 1 1 1 1 1 1 1 . 1 1 1 . 1 . 1 . 1 . 1 . 1 . . . 1 Average Overweight (x) . | . . 1 1 1 . 1 1 1 1 1 . . . . . . . . . . . . . . . . . . . Largest Inventory Capacity 25 | 8 20 20 25 20 25 25 25 25 25 25 25 25 25 25 25 25 25 25 25 25 25 25 25 25 25 25 25 25 25 Average Capacity 24 | 7 18 20 23 20 24 25 25 25 25 25 25 25 25 25 25 25 25 25 25 25 25 25 25 25 25 25 25 25 25 Most Carried 25 | 5 20 20 21 20 25 25 25 25 25 25 25 25 25 25 25 25 25 25 25 25 25 25 25 25 25 25 25 25 25 Average Carried 23 | 3 18 19 20 19 24 24 24 24 24 24 24 24 24 24 23 24 24 24 24 24 24 24 24 24 24 24 24 24 23 Final Capacity 25 | 8 20 20 20 20 25 25 25 25 25 25 25 25 25 25 25 25 25 25 25 25 25 25 25 25 25 25 25 25 25 Final Carried 25 | 5 20 20 19 20 25 25 25 24 25 25 25 25 25 25 25 25 25 23 25 25 25 25 25 25 25 25 25 25 16 Class Distribution -------------------- 30% | Scavenger-Gunner 23% | Scavenger-Tank 14% | Commander-Tank 11% | Mutant 8% | Scavenger-Skirmisher 7% | Tank 3% | Commander-Mutant Dominant Class ---------------- Mutant | -10/Materials Mutant | -10/Mines Mutant | -10/Exiles Mutant | -9/Mines Scavenger-Tank | -8/Materials Tank | -8/Storage Commander-Tank | -8/Recycling Commander-Tank | -8/Scraptown Commander-Tank | -6/Factory Tank | -6/Extension Commander-Tank | -6/Cetus Commander-Tank | -6/Archives Scavenger-Tank | -6/Hub_04(d) Scavenger-Tank | -5/Factory Scavenger-Tank | -5/Upper Caves Scavenger-Gunner | -5/Upper Caves Scavenger-Tank | -5/Warlord Scavenger-Gunner | -4/Proximity Caves Scavenger-Gunner | -4/Factory Scavenger-Gunner | -4/Upper Caves Scavenger-Gunner | -4/Upper Caves Scavenger-Gunner | -4/Zhirov Scavenger-Gunner | -3/Proximity Caves Scavenger-Gunner | -3/Research Scavenger-Skirmisher | -3/Quarantine Scavenger-Skirmisher | -2/Research Scavenger-Gunner | -2/Testing Scavenger-Gunner | -1/Access Scavenger-Gunner | -1/Command Resources | -11 -10 -10 -10 -9 -8 -8 -8 -8 -6 -6 -6 -6 -6 -5 -5 -5 -5 -4 -4 -4 -4 -4 -3 -3 -3 -2 -2 -1 -1 ----------- Run | Yrd Mat Min Exi Min Mat Sto Rec Scr Fac Ext Cet Arc Hub Fac Upp Upp War Pro Fac Upp Upp Zhi Pro Res Qua Res Tes Acc Com Matter Collected 20807 | 308 429 143 244 135 1085 629 8 70 331 1088 338 490 914 337 630 465 352 293 350 141 719 360 965 843 1832 684 2003 771 3850 Remotely 3412 | . . . . . . . . . . . . . . . . . . . . . . . . 351 . . 221 306 2534 Salvage Created 19728 | 111 811 101 . 101 1290 1335 85 . 303 881 523 395 1228 465 628 349 408 315 726 . 672 204 829 1298 1679 1006 1680 1150 1155 Parts 1008 | 10 47 6 . 9 81 64 3 . 18 46 21 27 66 27 11 19 18 10 38 . 34 2 33 49 144 30 102 72 21 Haulers Intercepted 19 | . 2 . . . 4 4 . . . . . . . 1 . . . . . . . . . 4 . 4 . . . Recyclers Shooed 13 | . . . . . 5 2 1 . . . . . . . . . . . . . . . . 1 . 1 1 1 1 Parts Field Recycled . | . . . . . . . . . . . . . . . . . . . . . . . . . . . . . . Retrieved Matter . | . . . . . . . . . . . . . . . . . . . . . . . . . . . . . . Parts Self-Destructed 116 | . . . . . . . . . . . . . . . 12 16 . 17 . . 35 2 34 . . . . . . Prevented 3 | . . . . . . . . . . . . . . . 1 . . . . . 2 . . . . . . . . Kills | -11 -10 -10 -10 -9 -8 -8 -8 -8 -6 -6 -6 -6 -6 -5 -5 -5 -5 -4 -4 -4 -4 -4 -3 -3 -3 -2 -2 -1 -1 ------- Run | Yrd Mat Min Exi Min Mat Sto Rec Scr Fac Ext Cet Arc Hub Fac Upp Upp War Pro Fac Upp Upp Zhi Pro Res Qua Res Tes Acc Com Combat Hostiles Destroyed 310 | . 21 4 . 6 27 19 . . 13 14 4 1 19 6 21 8 8 6 6 . 13 . 16 9 23 5 20 16 25 Melee 2 | . . . . . . . . . . . . . 1 . . . . . . . . . . . 1 . . . . Guns 215 | . 21 4 . 6 27 14 . . . . . 1 18 6 9 8 8 6 4 . 8 . 10 9 22 5 16 10 3 Cannons 51 | . . . . . . 5 . . 7 12 1 . . . . . . . 1 . . . 2 . . . . 2 21 AOE 36 | . . . . . . . . . 6 . . . . . 12 . . . . . 5 . 4 . . . 4 4 1 Classes Destroyed 24 | 1 6 1 . . 2 . . . 3 2 1 . 3 . . . 1 . . . . . 1 . . 1 1 . 1 Worker 8 | . 1 . . . 1 3 . . . . . . 1 . . . . . . . . . . . 1 . . . 1 Builder 10 | . 1 . . . 1 . . . 1 2 . . 1 . . . . . 2 . . . . . . . 1 1 . Tunneler 7 | 5 1 . . . 1 . . . . . . . . . . . . . . . . . . . . . . . . Hauler 19 | . 2 . . . 4 4 . . . . . . . 1 . . . . . . . . . 4 . 4 . . . Recycler 11 | . 1 . . . 1 1 2 . . 1 . . . . . . . . 2 . . . . 1 . 1 1 . . Mechanic 2 | . . . . . . . . . . 1 . . . . . . . . . . . . . 1 . . . . . Operator 13 | . . . . . 2 . . . . . . 9 . . . . . . 1 . . . . . . . . . 1 Drone 1 | . . . . . . . . . . . . . . . . . . . . . . . 1 . . . . . . Watcher 11 | . . . . . . . . . 1 . 2 . . . . . . . . . . . . 1 1 . 2 4 . Swarmer 74 | . 9 3 . 5 11 . . . 6 . . . . . 7 4 1 2 . . 5 . 5 2 4 . 5 5 . Saboteur 1 | . . . . . . . . . . . . . 1 . . . . . . . . . . . . . . . . Grunt 78 | . 12 . . 1 7 8 . . 4 5 . . 6 2 9 2 3 2 . . 2 . 4 2 1 2 6 . . Brawler 7 | . . . . . . . . . 1 . . . 2 . 1 . . 1 . . . . . . . . 1 1 . Duelist 6 | . . . . . . . . . . . . . 1 . . 1 . 1 . . . . 1 . . 1 . 1 . Protector 2 | . . . . . . . . . . . . . 1 . . . 1 . . . . . . . . . . . . Researcher 1 | . . . . . . . . . . . . . . . . . . . . . . . . . . . 1 . . Sentry 36 | . . 1 . . 8 10 . . 1 4 . 1 1 . 2 . . . 1 . 1 . 2 1 . 1 . 1 1 Demolisher 1 | . . . . . . . . . . . . . . . . . . . . . . . . . . 1 . . . Specialist 3 | . . . . . . . . . . . . . 2 . . . 1 . . . . . . . . . . . . Hunter 23 | . . . . . 1 1 . . . 3 . . . . . . . . 2 . 5 . 2 4 . . 1 2 2 Programmer 29 | . . . . . . . . . 1 . . . 2 4 2 . . . 3 . . . 1 . 3 . 7 6 . Behemoth 2 | . . . . . . . . . . 1 . . . . . 1 . . . . . . . . . . . . . Cetus Guard 4 | . . . . . . . . . . . 4 . . . . . . . . . . . . . . . . . . Quarantine Guard 12 | . . . . . . . . . . . . . . . . . . . . . . . . . 12 . . . . Enhanced Q-Series 21 | . . . . . . . . . . . . . . . . . . . . . . . . . . . . . 21 Lightning 6 | . . . . . . . . . . . . . 3 . . . . . . . . . . . 3 . . . . Striker 2 | . . . . . . . . . . . . . . . . . 2 . . . . . . . . . . . . Decomposer 1 | . . . . . . . . . . . . . . . 1 . . . . . . . . . . . . . . Butcher 1 | . . . . . . . . . . . 1 . . . . . . . . . . . . . . . . . . Guerrilla 3 | . . . . . . . . . . 1 2 . . . . . . . . . . . . . . . . . . Best Kill Streak 15 | 1 4 3 . 6 5 4 1 . 6 3 4 2 15 3 10 4 4 3 2 . 5 . 4 2 7 4 8 5 7 Combat Bots Only 13 | . 3 3 . 6 5 3 . . 6 3 3 1 13 2 10 4 4 3 1 . 5 . 4 2 7 4 7 5 7 Max Kills in Single Turn 4 | 1 2 1 . 2 2 2 1 . 3 2 1 1 2 2 4 1 2 1 2 . 3 . 2 2 3 2 3 4 1 Gunslinging 1 | . . . . 1 . . . . . . . . 1 . 1 . 1 . . . . . . 1 1 . 1 . . Exploded 4 | . . . . . . . . . 3 . . . . . 4 . . . . . 3 . 2 . . . 3 4 1 Melee 1 | . . . . . . . . . . . . . 1 . . . . . . . . . . . 1 . . . . Uniques/NPCs Destroyed 1 | . . . . . . . . . . . . . . . . . . . . . . . . . . . . . 1 MAIN.C Shell (-1/Command) Combat | -11 -10 -10 -10 -9 -8 -8 -8 -8 -6 -6 -6 -6 -6 -5 -5 -5 -5 -4 -4 -4 -4 -4 -3 -3 -3 -2 -2 -1 -1 -------- Run | Yrd Mat Min Exi Min Mat Sto Rec Scr Fac Ext Cet Arc Hub Fac Upp Upp War Pro Fac Upp Upp Zhi Pro Res Qua Res Tes Acc Com Hostile Shots Fired 1613 | . 83 21 . 85 79 82 . . 87 190 22 . 58 22 57 34 3 19 37 . 39 . 21 57 38 . 59 40 480 Missed 499 | . 26 5 . 19 24 24 . . 23 58 5 . 10 6 19 4 . 6 22 . 11 . 6 20 8 . 20 9 174 Deflected 4 | . . . . . . . . . . . . . . . . . . . . . . . . . . . 3 . 1 Hits 1114 | . 57 16 . 66 55 58 . . 64 132 17 . 48 16 38 30 3 13 15 . 28 . 15 37 30 . 39 31 306 Melee 10 | . . . . 1 . . . . . . . . 4 . . . . . . . . . . . . . . 5 . Projectile 1104 | . 57 16 . 65 55 58 . . 64 132 17 . 44 16 38 30 3 13 15 . 28 . 15 37 30 . 39 26 306 AOE 2 | . . . . . . . . . . . . . . . . . . . . . . . . . . . . 1 1 Critical Strikes 52 | . . . . . 1 2 . . 1 4 5 . 7 1 . 2 1 2 1 . 2 . 2 1 2 . 5 1 12 Actively Blocked 10 | . . . . . . . . . . . . . . . . . . . . . . . 2 . 1 . . . 7 Part Disruptions 21 | . . . . . . . . . . . . . 1 . . . . . . . 1 . . . . . . 1 18 Damage Taken 19585 | . 584 153 . 559 667 892 . . 830 1527 397 . 1154 93 892 740 35 141 207 . 379 . 232 639 749 . 567 574 7574 Core 1531 | . 81 25 . 105 68 102 . . 61 88 30 . 20 9 15 71 . 8 . . 10 . . 44 29 . 28 6 731 Absorbed by Shields 3976 | . . . . . . . . . . 107 34 . 284 39 87 . 18 134 37 . 60 . 18 53 28 . 115 179 2783 Reduced by Siege Mode 267 | . . . . . . . . . . . . . 82 7 42 46 . 7 . . 13 . 18 17 35 . . . . Ignored by Resistances 1869 | . . . . . . . . . . 278 158 . . 183 . . . . 76 . 126 . 97 199 254 . 325 145 28 Regen/Repaired (Parts) 2863 | . 61 . . . . 153 . . 195 169 53 . 124 153 111 158 254 9 33 . 79 . 50 83 84 10 79 145 860 Core Remaining (%) 76 | 100 . . . 15 . . . 69 . . . . 76 . . . . 89 . . . . 99 . 94 . 98 . 46 Volleys Fired 986 | 14 69 11 13 12 59 50 1 . 30 44 19 34 36 24 18 33 18 12 39 16 31 6 52 41 38 26 68 32 140 Largest 4 | 2 2 2 1 2 4 4 4 . 2 3 4 3 4 4 4 4 4 4 4 1 4 1 4 4 4 4 4 4 4 Hottest 299 | 70 100 40 40 43 94 175 175 . 100 219 299 210 140 140 140 195 140 140 140 35 140 35 156 208 160 160 170 180 250 Shots Fired 2517 | 28 131 22 13 24 236 188 4 . 44 83 32 70 124 51 44 88 60 48 63 16 82 6 107 107 114 86 172 87 387 Gun 1720 | 28 130 22 13 24 236 158 3 . . . 9 66 122 37 35 75 56 48 33 . 68 . 65 81 102 82 140 73 14 Cannon 771 | . . . . . . 30 1 . 42 82 20 4 2 14 . 13 4 . 30 16 10 6 39 26 12 4 30 13 373 Launcher 21 | . . . . . . . . . 2 . . . . . 9 . . . . . 4 . 3 . . . 2 1 . Special 5 | . 1 . . . . . . . . 1 3 . . . . . . . . . . . . . . . . . . Kinetic 2162 | 14 116 22 5 24 236 150 2 . 42 58 . 66 122 37 35 75 56 48 33 . 68 . 74 102 114 86 166 73 338 Thermal 260 | 14 15 . . . . 38 2 . . 10 4 4 2 14 . 1 4 . 23 16 10 6 30 1 . . 4 13 49 Explosive 21 | . . . . . . . . . 2 . . . . . 9 . . . . . 4 . 3 . . . 2 1 . Electromagnetic 67 | . . . 8 . . . . . . 14 25 . . . . 12 . . 7 . . . . 1 . . . . . Entropic 3 | . . . . . . . . . . . . . . . . . . . . . . . . 3 . . . . . Robot Hit Streak 50 | 11 17 4 . 16 9 22 . . 6 10 9 11 9 12 10 15 21 18 24 . 13 6 15 19 50 18 11 23 33 Robot Miss Streak 6 | 1 6 4 . 2 3 4 . . 2 3 2 3 3 1 6 3 3 3 1 . 3 . 2 2 5 4 6 3 2 Penetration Max 2 | . . . . . . 1 . . 1 . . 1 1 1 1 . 1 1 1 . . . 1 1 2 1 2 1 1 Secondary Targets 38 | . 2 . . 2 4 1 . . . . . . 5 3 2 1 4 3 . . 1 . . 3 4 . 3 . . Max Gunslinging Chain 1 | . 1 . . 1 1 1 . . . . . . 1 1 1 1 1 1 . . 1 . . 1 1 . 1 . . Shots Hit Robots 1526 | 20 84 11 . 19 148 104 . . 19 57 30 45 78 28 27 66 41 36 33 . 44 6 51 55 63 54 72 55 280 Core Hits 751 | 5 38 5 . 8 68 44 . . 18 22 10 21 38 12 55 18 19 15 17 . 28 3 26 30 38 29 49 42 93 Critical Kills 121 | . . 1 . . . 2 . . . 1 . 6 8 2 3 . 5 1 2 . 4 . 6 11 22 7 21 15 4 Critical Parts Destroyed 110 | . . . . . 2 1 . . . . 1 3 10 1 2 9 5 5 1 . 3 . 3 7 9 13 13 18 4 Critical Strikes 260 | 1 . 1 . . 2 3 . . . 3 2 9 18 3 5 11 10 6 3 . 7 . 10 21 37 20 34 36 18 Burn 1 | 1 . . . . . . . . . . . . . . . . . . . . . . . . . . . . . Meltdown 1 | . . . . . . . . . . 1 . . . . . . . . . . . . . . . . . . . Destroy 243 | . . 1 . . 2 3 . . . . . 9 18 3 5 11 10 6 3 . 7 . 10 20 37 20 34 36 8 Blast 13 | . . . . . . . . . . 2 . . . . . . . . . . . . . 1 . . . . 10 Corrupt 1 | . . . . . . . . . . . 1 . . . . . . . . . . . . . . . . . . Smash 1 | . . . . . . . . . . . 1 . . . . . . . . . . . . . . . . . . Melee Attacks 30 | . . . . . . . . . . 3 5 . . 15 3 4 . . . . . . . . . . . . . Impact 8 | . . . . . . . . . . 3 5 . . . . . . . . . . . . . . . . . . Slashing . | . . . . . . . . . . . . . . . . . . . . . . . . . . . . . . Piercing 22 | . . . . . . . . . . . . . . 15 3 4 . . . . . . . . . . . . . Sneak Attacks 6 | . . . . . . . . . . . 5 . . . 1 . . . . . . . . . . . . . . Combat Hostiles . | . . . . . . . . . . . . . . . . . . . . . . . . . . . . . . Follow-up Attacks . | . . . . . . . . . . . . . . . . . . . . . . . . . . . . . . Damage Inflicted 49422 | 257 1247 148 . 271 2448 2119 149 . 1739 2224 1184 1226 2414 951 2802 1648 1072 1065 1160 . 1277 235 1990 602 598 568 1559 1409 17060 Guns 20520 | 257 1216 148 . 270 2353 1521 33 . . . 49 1101 2414 894 609 1481 1072 1065 862 . 900 . 1264 458 548 503 811 610 81 Cannons 21111 | . . . . . . 516 25 . 1073 2199 531 125 . . . 77 . . 298 . . 235 111 113 . . . 345 15463 Explosions 6467 | . . . . . . . . . 651 . 118 . . . 2136 . . . . . 377 . 615 . . . 726 454 1390 Melee 633 | . . . . . . . . . . . 486 . . . 57 90 . . . . . . . . . . . . . Ramming 691 | . 31 . . 1 95 82 91 . 15 25 . . . 57 . . . . . . . . . 31 50 65 22 . 126 Kinetic 36612 | 171 1117 148 . 270 2353 1495 33 . 1073 1661 . 1101 2414 894 609 1481 1072 1065 862 . 900 . 1375 571 548 503 811 610 13475 Thermal 5473 | 86 99 . . . . 542 25 . . 285 210 125 . . . . . . 62 . . 235 . . . . . 345 3459 Explosive 4959 | . . . . . . . . . 651 . . . . . 2136 . . . . . 377 . 615 . . . 726 454 . Electromagnetic 1054 | . . . . . . . . . . 253 488 . . . . 77 . . 236 . . . . . . . . . . Impact 486 | . . . . . . . . . . . 486 . . . . . . . . . . . . . . . . . . Slashing . | . . . . . . . . . . . . . . . . . . . . . . . . . . . . . . Piercing 147 | . . . . . . . . . . . . . . . 57 90 . . . . . . . . . . . . . Highest Corruption 26 | . 1 1 1 1 . . 1 2 1 3 3 17 17 3 2 2 2 . 2 . . . . 1 2 . 4 2 26 Average Corruption 1 | . 1 1 1 1 . . 1 2 1 1 3 4 4 1 1 2 2 . 1 . . . . 1 1 . 2 1 6 Corruption Purged 36 | . . . . . . . . . . . . 20 . 4 . . . . 2 . . . . . . . . . 10 Corruption Blocked . | . . . . . . . . . . . . . . . . . . . . . . . . . . . . . . Effects 232 | . 4 14 7 7 . . 5 . . 21 6 12 16 8 9 21 . . 4 . . . . 4 54 . 5 8 27 Message Errors 57 | . 1 4 . 1 . . 1 . . 5 . 1 1 1 2 7 . . 2 . . . . 2 20 . 1 2 6 Matter Fused 59 | . . 4 2 . . . . . . 7 4 7 1 2 5 7 . . 1 . . . . 1 11 . 2 2 3 Heat Flow Errors 31 | . . 1 2 . . . 1 . . 4 1 1 3 4 . 1 . . . . . . . 1 9 . . 1 2 Energy Discharges 19 | . . . 1 . . . 2 . . 2 1 . 3 1 1 . . . . . . . . . 5 . 1 1 1 Parts Rejected 3 | . . . . . . . . . . . . 1 1 . . . . . . . . . . . . . 1 . . Parts Fused 5 | . . . . . . . 1 . . . . . 1 . 1 . . . 1 . . . . . 1 . . . . Data Loss (minor) 21 | . 2 3 1 1 . . . . . . . 2 1 . . 2 . . . . . . . . 5 . . . 4 Data Loss (major) 19 | . 1 2 1 2 . . . . . 3 . . 1 . . 3 . . . . . . . . 3 . . . 3 Misfires 6 | . . . . 1 . . . . . . . . . . . 1 . . . . . . . . . . . 1 3 Alerts 3 | . . . . 1 . . . . . . . . . . . . . . . . . . . . . . . . 2 Weapon Failures 9 | . . . . 1 . . . . . . . . 4 . . . . . . . . . . . . . . 1 3 Overload Shots 3 | . . . . . . . . . . . . . . . . . . . . . . . . . . . . . 3 Overflow Damage 1225 | . . . . . . . . . 40 34 334 . . 27 253 . . . . . 1 66 . 7 5 35 45 37 341 Projectiles 464 | . . . . . . . . . 36 34 33 . . . . . . . . . . 66 . . . . . 2 293 Explosions 378 | . . . . . . . . . 4 . 94 . . . 199 . . . . . 1 . . . . . 45 35 . Melee 383 | . . . . . . . . . . . 207 . . 27 54 . . . . . . . . 7 5 35 . . 48 Knockbacks 88 | . . . . . . . 1 . 8 9 2 . . . . . . . . . . . . . 1 1 . . 66 Impact 5 | . . . . . . . 1 . . 1 1 . . . . . . . . . . . . . 1 1 . . . Kinetic 79 | . . . . . . . . . 8 7 . . . . . . . . . . . . . . . . . . 64 Secondary 4 | . . . . . . . . . . 1 1 . . . . . . . . . . . . . . . . . 2 Self-Inflicted Damage 317 | . . . . . . . . . . . . . . . 195 . . . . . 122 . . . . . . . . Shots 7 | . . . . . . . . . . . . . . . 5 . . . . . 2 . . . . . . . . Rammed 41 | 1 8 . . 1 13 6 7 . 1 . . . . 1 . . . . . . . . . 1 2 . . . . Targets Rammed 56 | 1 10 . . 1 14 7 9 . 2 1 . . . 1 . . . . . . . . . 1 4 2 1 . 2 Kicked 5 | . . . . . . . . . . . . . . . . . . . . . . . . . . 2 1 . 2 Crushed 10 | . 2 . . . 1 1 2 . 1 1 . . . . . . . . . . . . . . 2 . . . . Highest Temperature 419 | 45 120 89 198 4 177 340 185 . 198 320 419 234 308 254 301 248 96 338 6 . 105 . 234 322 326 237 338 290 250 Average Temperature 79 | 16 30 29 54 2 50 90 84 . 81 114 171 78 75 46 97 97 36 130 2 . 40 . 68 81 111 69 90 72 80 Received Heat Transfer 2616 | . 198 18 . 18 162 378 . . 246 316 53 . 144 16 126 114 18 22 . . . . 22 27 . . 26 18 694 Effects 11 | . . . . . . . . . . . 3 . . . . 1 . . . . . . . 1 3 3 . . . Shutdowns 2 | . . . . . . . . . . . 1 . . . . . . . . . . . . . 1 . . . . Energy Bleed 3 | . . . . . . . . . . . 1 . . . . 1 . . . . . . . 1 . . . . . Interference 5 | . . . . . . . . . . . . . . . . . . . . . . . . . 2 3 . . . Matter Decay 1 | . . . . . . . . . . . 1 . . . . . . . . . . . . . . . . . . Siege Activations 38 | . . . . . . . . . . . . . 2 3 2 2 . 1 2 . 5 . 9 1 11 . . . . Total Turns 1349 | . . . . . . . . . . . . . 66 29 49 47 . 16 9 . 215 . 217 10 691 . . . . Longest Duration 284 | . . . . . . . . . . . . . 42 11 31 24 . 16 7 . 172 . 160 10 284 . . . . Martial Activations . | . . . . . . . . . . . . . . . . . . . . . . . . . . . . . . Shielding Activations 9 | . . . . . . . . . . . . . . . . . . . . . . . . . . . 3 4 2 Total Turns 125 | . . . . . . . . . . . . . . . . . . . . . . . . . . . 54 47 24 Longest Duration 25 | . . . . . . . . . . . . . . . . . . . . . . . . . . . 25 21 17 Robots Disrupted . | . . . . . . . . . . . . . . . . . . . . . . . . . . . . . . Combat Hostiles . | . . . . . . . . . . . . . . . . . . . . . . . . . . . . . . Robots Corrupted 9 | . . . . . . . . . . 1 4 . . . . . . . 1 . . . . 1 1 1 . . . Combat Hostiles 5 | . . . . . . . . . . 1 3 . . . . . . . 1 . . . . . . . . . . Parts Fried 10 | . . . . . . . . . . 1 3 . . . . . . . 2 . . . . 1 . 2 . . 1 Impact Corruptions 9 | . . . . . . . . . . . 3 . . 1 . . . . . . . . . 1 1 2 . . 1 Robots Melted 1 | . . . . . . . . . . 1 . . . . . . . . . . . . . . . . . . . Combat Hostiles . | . . . . . . . . . . . . . . . . . . . . . . . . . . . . . . Parts Melted 7 | . . . . . . . . . . 5 . . . . . . . . 1 . . . . . 1 . . . . Heat Transferred 3357 | 333 296 . . . . 807 37 . . 385 174 174 . . . . . . 100 . . 300 . . . . . 296 455 Parts Sabotaged 3 | . . . . . . . . . . . . . 3 . . . . . . . . . . . . . . . . Parts Stolen . | . . . . . . . . . . . . . . . . . . . . . . . . . . . . . . Parts Stripped . | . . . . . . . . . . . . . . . . . . . . . . . . . . . . . . Power Chain Reactions 1 | . . . . . . . . . . . 1 . . . . . . . . . . . . . . . . . . Alert | -11 -10 -10 -10 -9 -8 -8 -8 -8 -6 -6 -6 -6 -6 -5 -5 -5 -5 -4 -4 -4 -4 -4 -3 -3 -3 -2 -2 -1 -1 ------- Run | Yrd Mat Min Exi Min Mat Sto Rec Scr Fac Ext Cet Arc Hub Fac Upp Upp War Pro Fac Upp Upp Zhi Pro Res Qua Res Tes Acc Com Maximum Alert Level 3 | . 1 . . . 1 . . . 1 2 . 1 3 1 . . . . . . . . . 1 1 . 2 2 1 Low Security (%) 79 | 100 69 100 . 100 58 100 100 . 71 67 100 91 25 73 . . . . 100 . . . . 50 98 100 65 5 67 Level 1 17 | . 30 . . . 41 . . . 28 28 . 8 11 26 . . . . . . . . . 49 1 . 27 55 32 Level 2 2 | . . . . . . . . . . 3 . . 26 . . . . . . . . . . . . . 6 38 . Level 3 . | . . . . . . . . . . . . . 36 . . . . . . . . . . . . . . . . Level 4 . | . . . . . . . . . . . . . . . . . . . . . . . . . . . . . . Level 5 . | . . . . . . . . . . . . . . . . . . . . . . . . . . . . . . High Security . | . . . . . . . . . . . . . . . . . . . . . . . . . . . . . . Max Security . | . . . . . . . . . . . . . . . . . . . . . . . . . . . . . . Peak Influence 850 | 5 277 90 . 110 317 153 84 . 302 425 160 211 850 388 . . . . 107 . . . . 300 214 114 476 583 396 Initial 388 | . . 88 . . . 9 43 . . 138 144 38 . 388 . . . . . . . . . 300 66 93 . 278 346 Average 120 | . 107 14 . 35 141 90 27 . 92 129 112 103 490 147 . . . . 27 . . . . 175 112 30 144 355 213 Influence Increases 12143 | 25 657 120 . 130 802 738 332 . 697 980 347 354 1164 279 490 205 277 290 270 . 290 15 342 685 822 178 845 584 225 Destroy 0b10 Robot/C 6760 | . 420 80 . 120 540 380 60 . 400 520 160 80 620 120 420 160 220 220 120 . 260 . 300 180 460 100 420 320 80 Destroy 0b10 Robot/NC 490 | 25 30 . . . 50 45 10 . 10 40 10 45 40 5 5 . 5 . 25 . . 15 5 35 10 25 20 25 10 Destroy Leader 1246 | . 94 10 . 10 158 150 . . 72 56 . . 132 22 20 30 . 20 40 . 30 . 30 30 152 38 64 68 20 Allied During Kill 956 | . . . . . . 5 45 . 55 252 163 125 217 . . . 52 35 . . . . 7 . . . . . . Successful Hack 466 | . 21 . . . 21 71 37 . 6 38 . . 14 22 . . . . 14 . . . . 29 107 . 62 24 . Select Force Hacks 240 | . 60 . . . . . 180 . . . . . . . . . . . . . . . . . . . . . . Disable Machine 735 | . . . . . . 60 . . 45 45 . 90 105 60 . . . . 15 . . . . 45 75 . 135 30 30 Destroy Structure 590 | . 2 . . . 3 12 . . 49 29 14 14 36 50 . . . . 56 . . . . 36 18 15 114 57 85 Advance Influence 300 | . . . . . . . . . . . . . . . . . . . . . . . . 300 . . . . . Partial Spotted 75 | . . . . . 15 . . . . . . . . . . . . . . . . . . 15 . . 15 30 . Lose Combat Pursuer 285 | . 30 30 . . 15 15 . . 60 . . . . . 45 15 . 15 . . . . . 15 . . 15 30 . Influence Decreases 11792 | 25 429 348 . 130 778 650 444 . 413 1006 508 451 370 1050 380 338 124 443 249 21 253 52 342 566 775 344 381 506 416 Entered New Map 1691 | . . 140 . . . 15 69 . . 146 114 59 . 406 9 26 . 153 . 9 . 37 . . 53 73 . 186 196 Time Decay 8477 | 25 429 208 . 120 504 546 355 . 261 477 254 372 270 494 351 303 84 290 249 12 245 15 323 416 722 271 381 310 190 Lost Part 157 | . . . . 10 . . . . 10 50 20 . . . 20 9 . . . . 8 . . . . . . . 30 Lost Ally 551 | . . . . . . . 20 . 142 80 120 20 100 . . . 40 . . . . . 19 . . . . 10 . Purge Threat 916 | . . . . . 274 89 . . . 253 . . . 150 . . . . . . . . . 150 . . . . . Squads Dispatched 43 | . 6 . . . 2 2 . . 3 2 . . 9 2 . . . . 2 . . . . 5 1 . 6 2 1 Investigation 9 | . 2 . . . 1 1 . . 1 1 . . 1 . . . . . . . . . . 1 . . 1 . . Extermination 12 | . . . . . . . . . 1 . . . 1 2 . . . . 1 . . . . . 1 . 3 2 1 Reinforcement 20 | . 4 . . . 1 1 . . 1 1 . . 5 . . . . . 1 . . . . 4 . . 2 . . Assault 1 | . . . . . . . . . . . . . 1 . . . . . . . . . . . . . . . . Garrison 1 | . . . . . . . . . . . . . 1 . . . . . . . . . . . . . . . . Intercept . | . . . . . . . . . . . . . . . . . . . . . . . . . . . . . . Searches Triggered . | . . . . . . . . . . . . . . . . . . . . . . . . . . . . . . Construction Impeded 3 | . . . . . . . . . 1 1 . . 1 . . . . . . . . . . . . . . . . Haulers Reinforced 2 | . . . . . . . . . . . . . . . . . . . . . . . . 2 . . . . . Active Scanning Responses . | . . . . . . . . . . . . . . . . . . . . . . . . . . . . . . Cargo Convoy Interrupts . | . . . . . . . . . . . . . . . . . . . . . . . . . . . . . . Stealth | -11 -10 -10 -10 -9 -8 -8 -8 -8 -6 -6 -6 -6 -6 -5 -5 -5 -5 -4 -4 -4 -4 -4 -3 -3 -3 -2 -2 -1 -1 --------- Run | Yrd Mat Min Exi Min Mat Sto Rec Scr Fac Ext Cet Arc Hub Fac Upp Upp War Pro Fac Upp Upp Zhi Pro Res Qua Res Tes Acc Com Distress Signals 37 | . 4 . . . 4 3 . . . 2 2 . 5 . . . . . 1 . . . . 8 . 4 . 3 1 Communications Jammed 29 | . . . . . . . . . . . . . . . . . . . 23 . . . . 3 . . . 3 . Distress Signals 29 | . . . . . . . . . . . . . . . . . . . 23 . . . . 3 . . . 3 . Times Spotted 494 | . 34 7 1 10 47 26 3 . 20 34 12 16 28 9 22 8 40 11 12 . 8 . 7 16 19 8 27 22 47 Peak Tracking Total 13 | . 4 3 9 9 6 3 2 . 7 3 5 1 5 2 8 3 13 4 2 . 2 . 2 3 7 1 5 6 8 Tactical Retreats 15 | . 2 1 . . 1 1 . . 3 . . . . . 1 1 . 1 . . . . . 1 . . 1 2 . Traps | -11 -10 -10 -10 -9 -8 -8 -8 -8 -6 -6 -6 -6 -6 -5 -5 -5 -5 -4 -4 -4 -4 -4 -3 -3 -3 -2 -2 -1 -1 ------- Run | Yrd Mat Min Exi Min Mat Sto Rec Scr Fac Ext Cet Arc Hub Fac Upp Upp War Pro Fac Upp Upp Zhi Pro Res Qua Res Tes Acc Com Traps Triggered 12 | . 1 . . . 1 2 . . . 3 . . . . . . . . . . . . . 1 2 . 1 1 . Indirectly . | . . . . . . . . . . . . . . . . . . . . . . . . . . . . . . Trap Hack Attempts . | . . . . . . . . . . . . . . . . . . . . . . . . . . . . . . Triggered . | . . . . . . . . . . . . . . . . . . . . . . . . . . . . . . Disarmed . | . . . . . . . . . . . . . . . . . . . . . . . . . . . . . . Reprogrammed . | . . . . . . . . . . . . . . . . . . . . . . . . . . . . . . Reused . | . . . . . . . . . . . . . . . . . . . . . . . . . . . . . . Traps Extracted . | . . . . . . . . . . . . . . . . . . . . . . . . . . . . . . Installed . | . . . . . . . . . . . . . . . . . . . . . . . . . . . . . . Triggered . | . . . . . . . . . . . . . . . . . . . . . . . . . . . . . . Machines | -11 -10 -10 -10 -9 -8 -8 -8 -8 -6 -6 -6 -6 -6 -5 -5 -5 -5 -4 -4 -4 -4 -4 -3 -3 -3 -2 -2 -1 -1 ---------- Run | Yrd Mat Min Exi Min Mat Sto Rec Scr Fac Ext Cet Arc Hub Fac Upp Upp War Pro Fac Upp Upp Zhi Pro Res Qua Res Tes Acc Com Machines Disabled 62 | . . 2 7 . . 4 . . 3 4 . 6 7 4 . . 1 . 1 . . . 2 3 5 . 9 2 2 Max in Single Turn 1 | . . 1 1 . . 1 . . 1 1 . 1 1 1 . . 1 . 1 . . . 1 1 1 . 1 1 1 Garrison Access 6 | . . . . . . . . . 1 . . . 1 1 . . . . . . . . . . 1 2 . . . Network Hub 1 | . . . . . . . . . . . . . 1 . . . . . . . . . . . . . . . . Machines Repaired . | . . . . . . . . . . . . . . . . . . . . . . . . . . . . . . Machines Dismantled 2 | . . . . . . . . . . 1 . . 1 . . . . . . . . . . . . . . . . Machines Sabotaged . | . . . . . . . . . . . . . . . . . . . . . . . . . . . . . . Overloaded Fab Kills . | . . . . . . . . . . . . . . . . . . . . . . . . . . . . . . Hacking | -11 -10 -10 -10 -9 -8 -8 -8 -8 -6 -6 -6 -6 -6 -5 -5 -5 -5 -4 -4 -4 -4 -4 -3 -3 -3 -2 -2 -1 -1 --------- Run | Yrd Mat Min Exi Min Mat Sto Rec Scr Fac Ext Cet Arc Hub Fac Upp Upp War Pro Fac Upp Upp Zhi Pro Res Qua Res Tes Acc Com Machines Accessed 125 | . 8 . 2 . 12 15 12 . 5 16 . . 3 9 1 . 1 . 3 . . 4 . 5 14 1 8 4 2 Terminals 78 | . 5 . . . 8 12 6 . 2 15 . . 2 3 . . . . 1 . . . . 3 8 . 7 4 2 Fabricators 4 | . . . . . . . . . 1 . . . . 2 . . . . . . . . . . . . 1 . . Repair Stations 8 | . 1 . . . 1 1 . . 1 1 . . . . . . . . 1 . . . . . 2 . . . . Recycling Units 15 | . 2 . . . 2 2 6 . . . . . . 3 . . . . . . . . . . . . . . . Scanalyzers 6 | . . . . . 1 . . . . . . . . . . . . . 1 . . . . 1 3 . . . . Garrison Access 6 | . . . . . . . . . 1 . . . 1 1 . . . . . . . . . 1 1 1 . . . Total Hacks 336 | . 25 . 2 . 35 54 25 . 16 27 . . 6 20 1 . 1 . 12 . . 17 . 21 42 1 17 10 4 Successful 164 | . 15 . 2 . 18 26 15 . 6 15 . . 3 7 1 . 1 . 4 . . 17 . 9 12 1 7 4 1 Failed 171 | . 10 . . . 17 28 9 . 10 12 . . 3 13 . . . . 8 . . . . 12 30 . 10 6 3 Catastrophic 37 | . 1 . . . 3 . . . 3 2 . . . 3 . . . . 3 . . . . 3 12 . 5 1 1 Database Lockouts 1 | . . . . . . . 1 . . . . . . . . . . . . . . . . . . . . . . Manual 112 | . 14 . 1 . 17 27 15 . 6 8 1 . 1 10 . . . . . . . . . 6 2 . 2 . 2 Terminals 214 | . 18 . . . 22 42 19 . 7 25 . . 4 8 . . . . 3 . . . . 18 19 . 15 10 4 Fabricators 10 | . . . . . . . . . 4 . . . . 4 . . . . . . . . . . . . 2 . . Repair Stations 31 | . 2 . . . 2 4 . . 2 2 . . . . . . . . 8 . . . . . 11 . . . . Recycling Units 35 | . 5 . . . 9 8 6 . . . . . . 7 . . . . . . . . . . . . . . . Scanalyzers 14 | . . . . . 2 . . . . . . . . . . . . . 1 . . . . 1 10 . . . . Garrison Access 11 | . . . . . . . . . 3 . . . 2 1 . . . . . . . . . 2 2 1 . . . Terminal Hacks 96 | . 8 . 2 . 7 14 4 . 1 12 . . 1 1 1 . 1 . 2 . . 17 . 6 8 . 6 4 1 Record 7 | . . . 1 . . . . . . . . . . . . . . . . . . 5 . . 1 . . . . Part Schematic 8 | . . . . . . 2 . . 1 . . . . . . . . . . . . 4 . 1 . . . . . Robot Analysis 9 | . 3 . . . 1 1 . . . . . . . . . . . . . . . 4 . . . . . . . Prototype ID Bank 18 | . 2 . . . 2 2 4 . . 1 . . . . . . . . . . . 4 . . 3 . . . . Open Door 17 | . . . . . . 3 . . . 7 . . . . 1 . 1 . . . . . . . 1 . 1 3 . Branch Access Points 2 | . . . . . . . . . . . . . . . . . . . 1 . . . . 1 . . . . . Emergency Access Points 1 | . . . . . . . . . . . . . . . . . . . . . . . . 1 . . . . . Terminal Index 3 | . . . . . 1 1 . . . . . . . . . . . . . . . . . . . . . 1 . Alert Level 2 | . . . . . . . . . . . . . . . . . . . . . . . . . . . 1 . 1 Unreport Threat 8 | . . . . . 2 1 . . . 3 . . . 1 . . . . . . . . . 1 . . . . . Locate Traps 11 | . 2 . . . . 2 . . . 1 . . 1 . . . . . . . . . . 1 1 . 3 . . Maintenance Status 1 | . . . . . . . . . . . . . . . . . . . . . . . . . 1 . . . . Hauler Manifests 4 | . 1 . . . 1 1 . . . . . . . . . . . . . . . . . 1 . . . . . Registered Components 1 | . . . . . . . . . . . . . . . . . . . 1 . . . . . . . . . . Zone Layout 3 | . . . . . . 1 . . . . . . . . . . . . . . . . . . 1 . 1 . . Proto ID Catalog 1 | . . . 1 . . . . . . . . . . . . . . . . . . . . . . . . . . Fabricator Hacks 3 | . . . . . . . . . 2 . . . . . . . . . . . . . . . . . 1 . . Network Status 1 | . . . . . . . . . . . . . . . . . . . . . . . . . . . 1 . . Load Schematic 1 | . . . . . . . . . 1 . . . . . . . . . . . . . . . . . . . . Build 1 | . . . . . . . . . 1 . . . . . . . . . . . . . . . . . . . . Repair Station Hacks 10 | . 2 . . . 1 2 . . 2 . . . . . . . . . 1 . . . . . 2 . . . . Scan Component 7 | . 1 . . . 1 1 . . 1 . . . . . . . . . 1 . . . . . 2 . . . . Repair 3 | . 1 . . . . 1 . . 1 . . . . . . . . . . . . . . . . . . . . Recycling Unit Hacks 7 | . 2 . . . 2 1 . . . . . . . 2 . . . . . . . . . . . . . . . Retrieve Components 7 | . 2 . . . 2 1 . . . . . . . 2 . . . . . . . . . . . . . . . Scanalyzer 4 | . . . . . 1 . . . . . . . . . . . . . 1 . . . . 1 1 . . . . Insert Component 4 | . . . . . 1 . . . . . . . . . . . . . 1 . . . . 1 1 . . . . Garrison Access Hacks 5 | . . . . . . . . . 1 . . . 1 1 . . . . . . . . . . 1 1 . . . Seal Access 5 | . . . . . . . . . 1 . . . 1 1 . . . . . . . . . . 1 1 . . . Unauthorized Hacks 39 | . 3 . . . 7 9 11 . . 3 . . 1 3 . . . . . . . . . 2 . . . . . Terminals 24 | . 1 . . . 5 8 5 . . 2 . . 1 . . . . . . . . . . 2 . . . . . Track 2 | . . . . . . . . . . 1 . . . . . . . . . . . . . 1 . . . . . Assimilate 1 | . 1 . . . . . . . . . . . . . . . . . . . . . . . . . . . . Botnet 4 | . . . . . . 3 . . . . . . . . . . . . . . . . . 1 . . . . . Skim 16 | . . . . . 5 5 5 . . 1 . . . . . . . . . . . . . . . . . . . Sabotage 1 | . . . . . . . . . . . . . 1 . . . . . . . . . . . . . . . . Fabricators 1 | . . . . . . . . . . . . . . 1 . . . . . . . . . . . . . . . Haulers 1 | . . . . . . . . . . . . . . 1 . . . . . . . . . . . . . . . Repair Stations 1 | . . . . . . . . . . 1 . . . . . . . . . . . . . . . . . . . Patch 1 | . . . . . . . . . . 1 . . . . . . . . . . . . . . . . . . . Recycling Units 13 | . 2 . . . 2 1 6 . . . . . . 2 . . . . . . . . . . . . . . . Recyclers 2 | . . . . . 1 . . . . . . . . 1 . . . . . . . . . . . . . . . Mask 3 | . . . . . 1 1 . . . . . . . 1 . . . . . . . . . . . . . . . Tunnel 8 | . 2 . . . . . 6 . . . . . . . . . . . . . . . . . . . . . . Scanalyzers . | . . . . . . . . . . . . . . . . . . . . . . . . . . . . . . Garrison Access . | . . . . . . . . . . . . . . . . . . . . . . . . . . . . . . Data Cores Recovered 3 | . . . . . 1 . . . . . . . . . . . . . 1 . . . . . . . . . 1 Used 1 | . . . . . . . . . . . . . . . . . . . . . . . . . . . . . 1 Hacking Detections 82 | . 6 . . . 12 12 3 . 3 9 . . 1 8 . . . . 2 . . . . 4 11 . 7 2 2 Full Trace Events 3 | . . . . . . 1 1 . 1 . . . . . . . . . . . . . . . . . . . . Feedback Events 1 | . . . . . . . 1 . . . . . . . . . . . . . . . . . . . . . . Corruption 1 | . . . . . . . 1 . . . . . . . . . . . . . . . . . . . . . . Feedback Blocked . | . . . . . . . . . . . . . . . . . . . . . . . . . . . . . . Robot Schematics Acquired 4 | . . . . . . . . . . . . . . . . . . . . . . . . . 3 . 1 . . Robots Built . | . . . . . . . . . . . . . . . . . . . . . . . . . . . . . . Authchips . | . . . . . . . . . . . . . . . . . . . . . . . . . . . . . . Time . | . . . . . . . . . . . . . . . . . . . . . . . . . . . . . . Total Robot Build Rating . | . . . . . . . . . . . . . . . . . . . . . . . . . . . . . . Part Schematics Acquired 16 | . . . . . . 2 . . 1 . . . . . . . . . . . . 4 . 1 5 . 3 . . Parts Built 2 | . . . . . . . . . 2 . . . . . . . . . . . . . . . . . . . . Authchips 1 | . . . . . . . . . 1 . . . . . . . . . . . . . . . . . . . . Time 31 | . . . . . . . . . 31 . . . . . . . . . . . . . . . . . . . . Total Part Build Rating 4 | . . . . . . . . . 4 . . . . . . . . . . . . . . . . . . . . Parts Repaired 3 | . 1 . . . . 1 . . 1 . . . . . . . . . . . . . . . . . . . . Time 102 | . 26 . . . . 38 . . 38 . . . . . . . . . . . . . . . . . . . . Parts Recycled . | . . . . . . . . . . . . . . . . . . . . . . . . . . . . . . Recycled Matter . | . . . . . . . . . . . . . . . . . . . . . . . . . . . . . . Retrieved Matter . | . . . . . . . . . . . . . . . . . . . . . . . . . . . . . . Retrieved Components 35 | . 11 . . . 13 9 . . . . . . . 2 . . . . . . . . . . . . . . . Parts Scanalyzed . | . . . . . . . . . . . . . . . . . . . . . . . . . . . . . . Part Schematics Acquired . | . . . . . . . . . . . . . . . . . . . . . . . . . . . . . . Parts Damaged . | . . . . . . . . . . . . . . . . . . . . . . . . . . . . . . Bothacking | -11 -10 -10 -10 -9 -8 -8 -8 -8 -6 -6 -6 -6 -6 -5 -5 -5 -5 -4 -4 -4 -4 -4 -3 -3 -3 -2 -2 -1 -1 ------------ Run | Yrd Mat Min Exi Min Mat Sto Rec Scr Fac Ext Cet Arc Hub Fac Upp Upp War Pro Fac Upp Upp Zhi Pro Res Qua Res Tes Acc Com Used RIF Installer . | . . . . . . . . . . . . . . . . . . . . . . . . . . . . . . Robots Hacked . | . . . . . . . . . . . . . . . . . . . . . . . . . . . . . . Non-combat . | . . . . . . . . . . . . . . . . . . . . . . . . . . . . . . Combat . | . . . . . . . . . . . . . . . . . . . . . . . . . . . . . . Robot Hacks Applied . | . . . . . . . . . . . . . . . . . . . . . . . . . . . . . . Relay Couplers Released 11 | . . . . . . . . . . . . . 3 1 . . . . 3 . . . . . . 1 . 3 . Machine Destruction 2 | . . . . . . . . . . . . . . 1 . . . . . . . . . . . 1 . . . Programmers 9 | . . . . . . . . . . . . . 3 . . . . . 3 . . . . . . . . 3 . Fabnet Peak Effective % . | . . . . . . . . . . . . . . . . . . . . . . . . . . . . . . Robots Rewired 20 | . . . . . . . . . . 13 . . . . . . 5 . . . . . 2 . . . . . . Allies Hacked 1 | . . . . . . . . . . . . . . . . . . . . . . . 1 . . . . . . Hacks Repelled . | . . . . . . . . . . . . . . . . . . . . . . . . . . . . . . Allies | -11 -10 -10 -10 -9 -8 -8 -8 -8 -6 -6 -6 -6 -6 -5 -5 -5 -5 -4 -4 -4 -4 -4 -3 -3 -3 -2 -2 -1 -1 -------- Run | Yrd Mat Min Exi Min Mat Sto Rec Scr Fac Ext Cet Arc Hub Fac Upp Upp War Pro Fac Upp Upp Zhi Pro Res Qua Res Tes Acc Com Total Allies 47 | . . . . . . 10 . . . 24 5 . . . . . 6 . . . . . 2 . . . . . . Largest Group 19 | . . . . . . 10 10 9 9 19 19 12 10 . . . 5 3 2 . . . 2 . . . . . . Highest-Rated Group 758 | . . . . . . 173 173 157 157 714 758 703 582 . . . 256 191 135 . . . 90 . . . . . . Highest-Rated Ally 159 | . . . . . . 29 29 29 29 159 159 96 96 . . . 87 86 71 . . . 48 . . . . . . Total Orders 20 | . . . . . . . . . . . 12 2 . . . . 1 . . . . . . . . . . 5 . STAY 5 | . . . . . . . . . . . 4 1 . . . . . . . . . . . . . . . . . FOLLOW 9 | . . . . . . . . . . . 8 1 . . . . . . . . . . . . . . . . . GUARD 1 | . . . . . . . . . . . . . . . . . 1 . . . . . . . . . . . . EXPLORE 2 | . . . . . . . . . . . . . . . . . . . . . . . . . . . . 2 . RETURN 3 | . . . . . . . . . . . . . . . . . . . . . . . . . . . . 3 . Ally Attacks 429 | . . . . . . 4 16 . 79 93 66 21 82 . . . 42 20 3 . . . 3 . . . . . . Total Damage 9289 | . . . . . . 31 234 . 922 2165 1281 470 2225 . . . 1368 449 41 . . . 103 . . . . . . Kills 70 | . . . . . . 1 3 . 7 17 5 5 22 . . . 5 5 . . . . . . . . . . . Allies Corrupted 1 | . . . . . . . . . . . 1 . . . . . . . . . . . . . . . . . . Allies Melted 6 | . . . . . . . . . . . . . . . . . . . . . . . . . . . . . 6 Intel | -11 -10 -10 -10 -9 -8 -8 -8 -8 -6 -6 -6 -6 -6 -5 -5 -5 -5 -4 -4 -4 -4 -4 -3 -3 -3 -2 -2 -1 -1 ------- Run | Yrd Mat Min Exi Min Mat Sto Rec Scr Fac Ext Cet Arc Hub Fac Upp Upp War Pro Fac Upp Upp Zhi Pro Res Qua Res Tes Acc Com Active Infowar (turns) 25777 | 8 317 . . 254 613 . . . 591 167 . 146 205 1166 1109 1730 1300 1786 868 1199 2327 281 2027 1018 5136 1083 941 699 806 Optics 21332 | . . . . . . . . . . . . . . . 139 1730 1300 1786 868 1199 2327 281 2027 1018 5136 1083 941 699 798 Sensors 9853 | . . . . . . . . . . . . . . . . . . . . 1190 1979 252 1428 326 2176 957 773 604 168 Terrain 2 | . . . . . 2 . . . . . . . . . . . . . . . . . . . . . . . . Seismic 11106 | 8 317 . . 254 611 . . . 591 167 . 146 205 1166 1109 1730 1300 1786 868 848 . . . . . . . . . Cloaking 6253 | . . . . . . . . . . . . . . . . . 2 . 688 1199 2232 281 1441 266 144 . . . . Jamming 11699 | . . . . . . . . . . . . . . . . 882 . 1668 863 355 2278 281 1284 1009 692 1083 576 413 315 Robot Analysis Total 9 | . 3 . . . 1 1 . . . . . . . . . . . . . . . 4 . . . . . . . Derelict Logs Recovered 11 | . . 2 . 2 . . . . . . . . . . 1 2 . 1 . 1 2 . . . . . . . . Drone Launches 4 | . . . . . . . . . . . . . . . . . . . . . . . . . . . . 4 . Drone Recoveries 3 | . . . . . . . . . . . . . . . . . . . . . . . . . . . . 3 . Exploration | -11 -10 -10 -10 -9 -8 -8 -8 -8 -6 -6 -6 -6 -6 -5 -5 -5 -5 -4 -4 -4 -4 -4 -3 -3 -3 -2 -2 -1 -1 ------------- Run | Yrd Mat Min Exi Min Mat Sto Rec Scr Fac Ext Cet Arc Hub Fac Upp Upp War Pro Fac Upp Upp Zhi Pro Res Qua Res Tes Acc Com Turns Passed 43803 | 248 1897 1355 875 356 2340 1606 1015 3794 1133 2396 541 1042 632 1302 1678 1730 1300 1786 868 1199 2327 281 2027 1018 5136 1083 941 699 1198 Spaces Moved 20960 | 120 694 547 288 130 878 606 423 1658 428 891 218 413 272 690 948 981 694 1069 392 724 1223 159 935 540 2689 767 663 397 523 Core 2 | 2 . . . . . . . . . . . . . . . . . . . . . . . . . . . . . Treads 18267 | 118 694 547 288 130 878 606 423 1658 428 891 218 413 272 690 948 981 694 1069 392 724 1223 159 935 540 2348 . . . . Legs 2691 | . . . . . . . . . . . . . . . . . . . . . . . . . 341 767 663 397 523 Wheels . | . . . . . . . . . . . . . . . . . . . . . . . . . . . . . . Hover . | . . . . . . . . . . . . . . . . . . . . . . . . . . . . . . Flight . | . . . . . . . . . . . . . . . . . . . . . . . . . . . . . . Fastest Speed 50 | 50 160 240 240 240 160 225 225 225 225 228 160 160 160 160 160 160 160 160 160 160 160 160 160 160 101 101 101 106 105 Average Speed 176 | 158 231 240 292 240 227 225 225 225 227 234 189 160 162 160 164 160 160 160 160 160 160 160 166 160 150 102 103 106 114 Slowest Speed 320 | 160 240 240 320 240 240 225 225 225 228 240 240 160 240 240 240 160 240 160 240 160 240 160 240 160 232 104 106 106 184 Overloaded Moves . | . . . . . . . . . . . . . . . . . . . . . . . . . . . . . . Propulsion Burnouts . | . . . . . . . . . . . . . . . . . . . . . . . . . . . . . . Robots Hopped . | . . . . . . . . . . . . . . . . . . . . . . . . . . . . . . Potential Cave-ins 2 | . . . . . . . . . . . . . . . . . . . . . . . . . . . . . 2 Cave-ins Triggered . | . . . . . . . . . . . . . . . . . . . . . . . . . . . . . . Exploration Rate (%) 64 | 7 97 98 60 32 86 95 98 57 14 88 56 97 34 21 97 94 89 97 18 85 93 63 90 24 98 26 79 15 28 Regions Visited 29 Branch Regions 21 Pre-discovered Areas 16 | . 2 1 1 . 1 . 7 . . . . . . . . 1 . . . . . 3 . . . . . . . Known Exits Taken 13 | . . . . 1 . 1 . 1 1 . . . 1 . 1 . . 1 1 . . . . 1 1 1 1 1 . Unknown Exits Taken 16 | 1 1 1 1 . 1 . 1 . . 1 1 1 . 1 . 1 1 . . 1 1 1 1 . . . . . . Scrap Searched 21 | . . 1 . 1 . . . 4 . . . . . . 3 1 . 5 . 2 3 . 1 . . . . . . Spaces Dug 178 | . 1 . . . . 2 . . 12 3 . . 2 16 12 9 . . 20 4 7 . 14 11 5 4 19 1 36 Terrain Destroyed 784 | . 1 . . . . 6 . . 53 23 21 18 24 36 166 27 9 12 31 16 109 . 87 18 9 5 38 21 54 Melee 18 | . . . . . . . . . . 3 . . . 11 2 2 . . . . . . . . . . . . . Projectile 417 | . 1 . . . . 6 . . 27 20 1 18 24 25 14 25 9 12 31 16 40 . 57 17 7 4 21 2 40 AOE 337 | . . . . . . . . . 26 . 20 . . . 150 . . . . . 69 . 30 . . . 15 14 13 Terrain Rammed . | . . . . . . . . . . . . . . . . . . . . . . . . . . . . . . Walls Destroyed . | . . . . . . . . . . . . . . . . . . . . . . . . . . . . . . Machines Disabled . | . . . . . . . . . . . . . . . . . . . . . . . . . . . . . . Actions | -11 -10 -10 -10 -9 -8 -8 -8 -8 -6 -6 -6 -6 -6 -5 -5 -5 -5 -4 -4 -4 -4 -4 -3 -3 -3 -2 -2 -1 -1 --------- Run | Yrd Mat Min Exi Min Mat Sto Rec Scr Fac Ext Cet Arc Hub Fac Upp Upp War Pro Fac Upp Upp Zhi Pro Res Qua Res Tes Acc Com Total 25994 | 146 846 571 307 150 1073 746 479 1726 525 1080 314 721 370 817 1020 1071 843 1111 574 747 1530 180 1322 646 3717 1003 824 609 926 Wait 2607 | . 36 1 . . 15 42 33 36 25 8 16 248 13 48 29 35 79 21 82 . 239 . 293 3 834 174 19 148 130 Move 20931 | 119 693 546 287 129 877 605 422 1657 427 890 217 412 271 689 947 980 693 1068 391 723 1222 158 934 539 2688 766 662 396 523 Hop . | . . . . . . . . . . . . . . . . . . . . . . . . . . . . . . Pick Up 286 | 5 19 2 . 4 32 12 4 13 13 18 16 4 12 6 4 4 7 . 15 1 1 2 1 14 43 7 7 3 17 Fast Attach 108 | 7 2 . . . 9 2 . 2 2 5 6 6 6 4 . . 5 1 3 . 1 6 . 5 12 4 10 1 9 Attach 103 | . 1 . 1 2 9 . . 3 6 9 5 1 5 4 3 1 . 1 4 1 1 . . 2 12 2 . 1 29 Detach 57 | . 2 . 1 . 3 . 2 . 2 4 2 . 2 3 1 . 1 . 3 . 1 . . . 4 1 3 1 21 Swap 418 | . 6 5 4 1 19 7 . 3 8 18 8 10 11 16 14 11 8 7 25 5 33 1 36 21 32 11 37 25 36 Drop 317 | . 8 6 1 1 36 17 8 12 10 17 20 6 11 7 1 3 12 1 12 1 1 7 1 20 50 10 17 2 19 Fire 986 | 14 69 11 13 12 59 50 1 . 30 44 19 34 36 24 18 33 18 12 39 16 31 6 52 41 38 26 68 32 140 Melee 30 | . . . . . . . . . . 3 5 . . 15 3 4 . . . . . . . . . . . . . Ram . | . . . . . . . . . . . . . . . . . . . . . . . . . . . . . . Kick 5 | . . . . . . . . . . . . . . . . . . . . . . . . . . 2 1 . 2 Crush 51 | 1 10 . . 1 14 7 9 . 2 1 . . . 1 . . . . . . . . . 1 4 . . . . Escape Stasis 6 | . . . . . . 4 . . . 2 . . . . . . . . . . . . . . . . . . . Rewire 78 | . . . . . . . . . . 53 . . . . . . 20 . . . . . 5 . . . . . . Trap . | . . . . . . . . . . . . . . . . . . . . . . . . . . . . . . Miscellaneous 11 | . . . . . . . . . . 8 . . 3 . . . . . . . . . . . . . . . . Route ------- -11/Scrapyard -10/Materials (discovered 5 exits: [*Mat x3] / [*Min] / [*Sub]) -10/Mines (discovered 4 exits: [*Mat x2] / *Exi / [*Sub]) -10/Exiles -9/Mines (discovered 2 exits: *Mat x2) -8/Materials (discovered 3 exits: *Fac x2 / *Sto) -8/Storage (discovered 2 exits: *Fac / *Rec) -8/Recycling (discovered 2 exits: *Fac / [*Scr]) -8/Scraptown (discovered 2 exits: *Fac x2) -6/Factory (discovered 3 exits: Fac / *Ext x2) -6/Extension (discovered 2 exits: *Fac / *Cet) -6/Cetus (discovered 2 exits: *Fac / *Arc) -6/Archives (discovered 3 exits: *Fac / *Hub x2) -6/Hub_04(d) -5/Factory (discovered 2 exits: *Fac / *Upp) -5/Upper Caves (discovered 2 exits: *Upp / *War) -5/Upper Caves (discovered 2 exits: *Fac / *War) -5/Warlord -4/Proximity Caves -4/Factory (discovered 3 exits: *Res / *Upp x2) -4/Upper Caves -4/Upper Caves (discovered 2 exits: *Res / *Zhi) -4/Zhirov -3/Proximity Caves -3/Research (discovered 3 exits: *Arm / *Qua x2) -3/Quarantine -2/Research (discovered 2 exits: *Tes x2) -2/Testing -1/Access -1/Command (discovered 2 exits: *Sur x2) By MAIN.C's Side History --------- Turn | Location | Event 2 | -11/Scrapyard | Met Revision 17 22 | -11/Scrapyard | Discovered new exit (range 15) 249 | -11/Scrapyard | Entered Materials 312 | -10/Materials | Build established: Mutant 615 | -10/Materials | Discovered new exit (range 15) 798 | -10/Materials | Discovered new exit (range 12) 1101 | -10/Materials | Discovered new exit (range 16) 1620 | -10/Materials | Discovered new exit (range 16) 1764 | -10/Materials | Discovered new exit (range 16) 1986 | -10/Materials | Repaired Lgt. Armor Plating 2146 | -10/Materials | Entered Mines 2197 | -10/Mines | Discovered new exit (range 11) 2214 | -10/Mines | Learned 4 Materials zone layouts 2310 | -10/Mines | Discovered new exit (range 10) 2515 | -10/Mines | Met a Derelict testing a Signal Generator 2526 | -10/Mines | Found Signal Generator 2793 | -10/Mines | Discovered new exit (range 10) 2941 | -10/Mines | Learned location of Zion (-7) 2994 | -10/Mines | Found a hidden stash of uninstalled traps 3489 | -10/Mines | Deemed a non-threat by the Exiles lab entrance 3489 | -10/Mines | Discovered new exit (range 5) 3501 | -10/Mines | Entered Exiles 3559 | -10/Exiles | Met 8R-AWN 3605 | -10/Exiles | Met EX-HEX 3698 | -10/Exiles | Met EX-BIN 3736 | -10/Exiles | Aligned with FarCom system 3739 | -10/Exiles | Given EX-Vault access code 3813 | -10/Exiles | Opened EX-Vault 3893 | -10/Exiles | Warned to stay clear of 0b10 Research branches 3999 | -10/Exiles | Met EX-DEC 4197 | -10/Exiles | Discovered new exit (range 10) 4337 | -10/Exiles | Attacked by the Exiles 4376 | -10/Exiles | Entered Mines 4380 | -9/Mines | Met a Derelict bent on vengeance 4385 | -9/Mines | Core integrity fell below 50% 4476 | -9/Mines | Identified exit to Materials 4527 | -9/Mines | Learned Materials stockpile data 4572 | -9/Mines | Assembled infested the area 4706 | -9/Mines | Discovered exit to Materials (range 10) 4732 | -9/Mines | Core integrity fell below 20% 4732 | -9/Mines | Entered Materials 4732 | -8/Materials | Evolved 4 slots: Propulsion x1, Utility x1, Weapon x2 4733 | -8/Materials | Identified exit to Factory 5128 | -8/Materials | Discovered exit to Factory (range 8) 5293 | -8/Materials | Build established: Scavenger-Tank 6093 | -8/Materials | Discovered new exit (range 14) 6707 | -8/Materials | Learned Factory security intel 6759 | -8/Materials | Learned Storage emergency access door positions 6803 | -8/Materials | Learned Storage emergency access door positions 6838 | -8/Materials | Learned Storage stockpile data 6861 | -8/Materials | Learned Storage trap positions 6875 | -8/Materials | Learned location of 1 exit from Storage 6971 | -8/Materials | Learned 4 Lower Caves zone layouts 7020 | -8/Materials | Build established: Tank 7072 | -8/Materials | Entered Storage 7074 | -8/Storage | Loaded intel: 12 trap records 7848 | -8/Storage | Learned Factory recycling unit intel 7902 | -8/Storage | Loaded intel: 23 non-interactive machine locations 7947 | -8/Storage | Learned location of 1 exit from Extension 7983 | -8/Storage | Learned Factory emergency access door positions 8022 | -8/Storage | Identified exit to Recycling 8046 | -8/Storage | Learned 12 Factory zone layouts 8079 | -8/Storage | Learned 4 Recycling zone layouts 8393 | -8/Storage | Repaired Imp. Light Armor Plating? 8420 | -8/Storage | Assisted by bots powering up and referring to "LRC-V3" 8640 | -8/Storage | Used back door to open Recycling access 8678 | -8/Storage | Entered Recycling 8678 | -8/Recycling | Accompanied by 10 allies 8731 | -8/Recycling | Build established: Commander-Tank 9075 | -8/Recycling | Discovered new exit (range 5) 9546 | -8/Recycling | Learned Factory trap positions 9606 | -8/Recycling | Scanned before Scraplab entrance 9607 | -8/Recycling | Learned Storage interactive machine intel 9621 | -8/Recycling | Learned Storage trap positions 9626 | -8/Recycling | Learned Storage emergency access door positions 9627 | -8/Recycling | Learned Storage stockpile data 9640 | -8/Recycling | Entered Scraplab 9647 | -8/Recycling | Learned Factory trap positions 9658 | -8/Recycling | Discovered new exit (range 2) 9693 | -8/Recycling | Entered Scraptown 9693 | -8/Scraptown | Accompanied by 9 allies 9693 | -8/Scraptown | System corruption cleaned by C-Scrubber 9694 | -8/Scraptown | Identified exit to Factory 9718 | -8/Scraptown | Heard Great Nut preacher, LISTEN AND RECITE! 9921 | -8/Scraptown | Build established: Commander-Mutant 10254 | -8/Scraptown | Visited Spacefarers 10285 | -8/Scraptown | Visited Cyclists 10326 | -8/Scraptown | Visited Shadow of the Wyrm 10353 | -8/Scraptown | Visited TADAMA 10409 | -8/Scraptown | Turned away by UFD registrar 10488 | -8/Scraptown | Visited Junk Repository 10616 | -8/Scraptown | Visited Red Mages 10634 | -8/Scraptown | Visited Awakened 11419 | -8/Scraptown | Build established: Commander-Tank 13485 | -8/Scraptown | System corruption cleaned by C-Scrubber 13487 | -8/Scraptown | Entered Factory 13487 | -6/Factory | Accompanied by 9 allies 13487 | -6/Factory | Evolved 4 slots: Power x1, Propulsion x1, Utility x2 13488 | -6/Factory | Identified exit to Factory 13488 | -6/Factory | Identified exit to Extension 13490 | -6/Factory | Loaded intel: 115 trap records 13493 | -6/Factory | Loaded intel: 8 recycling unit locations 13617 | -6/Factory | Lost 3 allies 13839 | -6/Factory | Repaired Hvy. Armor Plating 14111 | -6/Factory | Lost 3 allies 14195 | -6/Factory | Fabricated Plasma Cutter? 14402 | -6/Factory | Build established: Tank 14620 | -6/Factory | Entered Extension 15557 | -6/Extension | Rescued a captive Derelict 15626 | -6/Extension | Build established: Mutant 15653 | -6/Extension | Rescued a captive Derelict 15775 | -6/Extension | Rescued a captive Derelict 15775 | -6/Extension | Rescued a captive Derelict 15808 | -6/Extension | Rescued A7 15984 | -6/Extension | Build established: Tank 16085 | -6/Extension | Spotted B-75 Beast 16096 | -6/Extension | Allies destroyed B-75 Beast 16110 | -6/Extension | Spotted B-75 Beast 16136 | -6/Extension | Destroyed B-75 Beast 16428 | -6/Extension | Rescued a captive Derelict 16429 | -6/Extension | Rescued a captive Derelict 16642 | -6/Extension | Rescued a captive Derelict 16643 | -6/Extension | Rescued a captive Derelict 16701 | -6/Extension | Build established: Commander-Tank 16756 | -6/Extension | Rescued a captive Derelict 16866 | -6/Extension | Rescued a captive Derelict 16923 | -6/Extension | Discovered new exit (range 6) 17016 | -6/Extension | Entered Cetus 17016 | -6/Cetus | Accompanied by 19 allies (A7) 17021 | -6/Cetus | Acquired a Cetus Manufacturing Module code from A7 17092 | -6/Cetus | Spotted Cetus Guard 17092 | -6/Cetus | Spotted Cetus Guard 17095 | -6/Cetus | Spotted Cetus Guard 17096 | -6/Cetus | Spotted Cetus Guard 17100 | -6/Cetus | Allies destroyed Cetus Guard 17121 | -6/Cetus | Allies destroyed Cetus Guard 17123 | -6/Cetus | Allies destroyed Cetus Guard 17126 | -6/Cetus | Destroyed Cetus Guard 17154 | -6/Cetus | Lost 5 allies 17295 | -6/Cetus | Started Cetus Manufacturing Module 17314 | -6/Cetus | Discovered new exit (range 15) 17320 | -6/Cetus | Manufactured an Enhanced Grunt 17345 | -6/Cetus | Manufactured an Enhanced Grunt 17370 | -6/Cetus | Manufactured an Enhanced Grunt 17384 | -6/Cetus | Spotted Cetus Guard 17385 | -6/Cetus | Spotted Cetus Guard 17388 | -6/Cetus | Spotted Cetus Guard 17389 | -6/Cetus | Spotted Cetus Guard 17391 | -6/Cetus | Destroyed Cetus Guard 17395 | -6/Cetus | Manufactured an Enhanced Grunt 17405 | -6/Cetus | Allies destroyed Cetus Guard 17408 | -6/Cetus | Destroyed Cetus Guard 17410 | -6/Cetus | Destroyed Cetus Guard 17416 | -6/Cetus | Extracted ID and sensor layout for unrecognized location from A7's data core 17420 | -6/Cetus | Manufactured an Enhanced Grunt 17422 | -6/Cetus | Found Prototype Protection 17423 | -6/Cetus | Identified Med. Regenerative Plating 17433 | -6/Cetus | Discovered exit to Factory (range 15) 17440 | -6/Cetus | Lost 3 allies 17441 | -6/Cetus | Met Revision 17 17557 | -6/Cetus | Entered Archives 17557 | -6/Archives | Accompanied by 13 allies 17646 | -6/Archives | Discovered new exit (range 16) 17684 | -6/Archives | Discovered new exit (range 16) 17764 | -6/Archives | Discovered exit to Factory (range 14) 17775 | -6/Archives | Unable to access archive contents 18168 | -6/Archives | System corruption reached 10% 18599 | -6/Archives | Entered Hub_04(d) 18599 | -6/Hub_04(d) | Accompanied by 10 allies 18655 | -6/Hub_04(d) | Spotted B-75 Beast 18670 | -6/Hub_04(d) | Allies destroyed B-75 Beast 18760 | -6/Hub_04(d) | Garrison activated, responded to threat 18794 | -6/Hub_04(d) | Lost 4 allies 18798 | -6/Hub_04(d) | Discovered exit to Factory (range 5) 18854 | -6/Hub_04(d) | Build established: Scavenger-Tank 18880 | -6/Hub_04(d) | Network Hub disabled 18910 | -6/Hub_04(d) | Spotted Lightning 18919 | -6/Hub_04(d) | Spotted Lightning 18920 | -6/Hub_04(d) | Spotted Lightning 18928 | -6/Hub_04(d) | Destroyed Lightning 18949 | -6/Hub_04(d) | First assault squad dispatched 18950 | -6/Hub_04(d) | Destroyed Lightning 18950 | -6/Hub_04(d) | Destroyed Lightning 18979 | -6/Hub_04(d) | Found Prototype Device 18979 | -6/Hub_04(d) | Identified Exp. Phase Shifter 19049 | -6/Hub_04(d) | Destroyed 13 combat bots 19049 | -6/Hub_04(d) | Found Prototype Device 19052 | -6/Hub_04(d) | Found Exp. Phase Shifter 19072 | -6/Hub_04(d) | Found Prototype Processor 19224 | -6/Hub_04(d) | Identified Exp. EM Shield 19231 | -6/Hub_04(d) | Entered Factory 19231 | -5/Factory | Evolved 2 slots: Utility x2 19232 | -5/Factory | Loaded intel: 81 trap records 19248 | -5/Factory | Identified Exp. Targeting Computer 19625 | -5/Factory | Discovered new exit (range 11) 19726 | -5/Factory | Identified exit to Factory 20238 | -5/Factory | Discovered new exit (range 5) 20323 | -5/Factory | Found Prototype Launcher 20323 | -5/Factory | Identified Scatter Rocket Array 20422 | -5/Factory | Found Scatter Rocket Array 20533 | -5/Factory | Entered Upper Caves 21336 | -5/Upper Caves | Attracted the attention of an 0b10 checkpoint 21465 | -5/Upper Caves | Attracted the attention of an 0b10 outpost 21508 | -5/Upper Caves | Destroyed 10 combat bots 21575 | -5/Upper Caves | Identified exit to Upper Caves 21648 | -5/Upper Caves | A Derelict revealed a hidden shortcut to "reach the base" 22211 | -5/Upper Caves | Entered another Upper Caves area 22410 | -5/Upper Caves | Discovered exit to Factory (range 9) 22464 | -5/Upper Caves | Learned Factory garrison access intel 22519 | -5/Upper Caves | Build established: Scavenger-Gunner 23102 | -5/Upper Caves | Learned location of Armory (-3) 23185 | -5/Upper Caves | Spotted B-75 Beast 23187 | -5/Upper Caves | Discovered new exit (range 9) 23213 | -5/Upper Caves | Destroyed B-75 Beast 23343 | -5/Upper Caves | Found Botcube 23503 | -5/Upper Caves | Build established: Scavenger-Tank 23941 | -5/Upper Caves | Entered Warlord 23994 | -5/Warlord | System corruption cleaned by Quarantine Array 24301 | -5/Warlord | Found Prototype Reactor 24305 | -5/Warlord | Found Prototype Device 24305 | -5/Warlord | Identified Exp. Cloaking Device 24314 | -5/Warlord | Found Prototype Processor 24314 | -5/Warlord | Identified Spectral Analyzer 24582 | -5/Warlord | Met Warlord 24607 | -5/Warlord | Warlord's base attacked by MAIN.C 24686 | -5/Warlord | Found Prototype Energy Cannon 24692 | -5/Warlord | Found Prototype Energy Cannon 24943 | -5/Warlord | Spotted Striker 24957 | -5/Warlord | Warlord forces counterattacked 24979 | -5/Warlord | Destroyed Striker 24983 | -5/Warlord | Spotted Striker 24984 | -5/Warlord | Spotted Executioner 25046 | -5/Warlord | Lost 8 allies 25046 | -5/Warlord | Found Prototype Processor 25046 | -5/Warlord | Identified Exp. Core Analyzer 25052 | -5/Warlord | Spotted Striker 25056 | -5/Warlord | Botcube activated 25080 | -5/Warlord | Botcube completed mutation into legged form, armed with 1 gun, 1 cannon. 25108 | -5/Warlord | Spotted Striker 25115 | -5/Warlord | Discovered new exit (range 12) 25119 | -5/Warlord | Destroyed Striker 25133 | -5/Warlord | Spotted Executioner 25175 | -5/Warlord | Lost 6 allies 25241 | -5/Warlord | Spotted Executioner 25241 | -5/Warlord | Entered Proximity Caves 25241 | -4/Proximity Caves | Accompanied by 3 allies 25263 | -4/Proximity Caves | Lost 11 allies 25352 | -4/Proximity Caves | Build established: Scavenger-Gunner 26320 | -4/Proximity Caves | Attracted the attention of an 0b10 checkpoint 26715 | -4/Proximity Caves | Discovered exit to Factory (range 14) 27027 | -4/Proximity Caves | Entered Factory 27027 | -4/Factory | Accompanied by 2 allies 27027 | -4/Factory | Evolved 2 slots: Utility x2 27028 | -4/Factory | Loaded intel: 4 garrison access locations 27123 | -4/Factory | Discovered new exit (range 15) 27295 | -4/Factory | Found Botcube 27447 | -4/Factory | Identified exit to Upper Caves 27695 | -4/Factory | Spotted B-86 Titan 27895 | -4/Factory | Entered Upper Caves 28135 | -4/Upper Caves | Found DCF Scrap (12 items) 28290 | -4/Upper Caves | Learned 8 Research zone layouts 29015 | -4/Upper Caves | Discovered new exit (range 13) 29094 | -4/Upper Caves | Entered another Upper Caves area 29300 | -4/Upper Caves | Encountered a Warlord checkpoint 29302 | -4/Upper Caves | Discovered new exit (range 7) 30573 | -4/Upper Caves | Discovered new exit (range 8) 30637 | -4/Upper Caves | Learned Research interactive machine intel 31421 | -4/Upper Caves | Entered Zhirov 31421 | -4/Zhirov | Discovered new exit (range 3) 31450 | -4/Zhirov | Met Zhirov 31487 | -4/Zhirov | Learned location of Command (-1) 31511 | -4/Zhirov | Zhirov requested help retrieving the SGEMP Prototype 31536 | -4/Zhirov | Found Alien Artifact 31536 | -4/Zhirov | Identified Integrated Reactor 31536 | -4/Zhirov | Installed Integrated Reactor, increased core energy generation (+10) 31641 | -4/Zhirov | Found Alien Artifact 31702 | -4/Zhirov | Entered Proximity Caves 31840 | -3/Proximity Caves | Spotter reported a threat 31965 | -3/Proximity Caves | Spotter reported a threat 33455 | -3/Proximity Caves | Attracted the attention of an 0b10 checkpoint 33503 | -3/Proximity Caves | Discovered new exit (range 13) 33729 | -3/Proximity Caves | Entered Research 33729 | -3/Research | Evolved 2 slots: Propulsion x2 33730 | -3/Research | Identified exit to Armory 33732 | -3/Research | Loaded intel: 47 interactive machine locations 33929 | -3/Research | Revision forces began assault on 0b10 34012 | -3/Research | Met up with Revision 17++ 34217 | -3/Research | Lost 3 allies 34286 | -3/Research | Identified exit to Quarantine 34429 | -3/Research | Research terminal network offline 34520 | -3/Research | Spotted Striker 34724 | -3/Research | Identified Vortex Cannon 34747 | -3/Research | Entered Quarantine 34809 | -3/Quarantine | Found Alien Artifact 35262 | -3/Quarantine | Discovered new exit (range 19) 35287 | -3/Quarantine | Build established: Scavenger-Skirmisher 35317 | -3/Quarantine | Cryocooling Duct disabled 35321 | -3/Quarantine | Cryocooling Duct disabled 35332 | -3/Quarantine | Ambient heat levels rising (+20) 35332 | -3/Quarantine | Non-combat units ordered to evacuate 35336 | -3/Quarantine | Ambient heat levels rising (+20) 35336 | -3/Quarantine | Combat units ordered to evacuate 35436 | -3/Quarantine | Quarantine Guard activated 35438 | -3/Quarantine | Spotted Quarantine Guard 35438 | -3/Quarantine | Spotted Quarantine Guard 35438 | -3/Quarantine | Spotted Quarantine Guard 35438 | -3/Quarantine | Spotted Quarantine Guard 35438 | -3/Quarantine | Spotted Quarantine Guard 35441 | -3/Quarantine | Destroyed Quarantine Guard 35442 | -3/Quarantine | Spotted Quarantine Guard 35446 | -3/Quarantine | Destroyed Quarantine Guard 35446 | -3/Quarantine | Destroyed Quarantine Guard 35446 | -3/Quarantine | Destroyed Quarantine Guard 35452 | -3/Quarantine | Destroyed Quarantine Guard 35452 | -3/Quarantine | Destroyed Quarantine Guard 35453 | -3/Quarantine | Spotted Quarantine Guard 35459 | -3/Quarantine | Destroyed Quarantine Guard 35480 | -3/Quarantine | Destroyed 7 combat bots 35520 | -3/Quarantine | Spotted Quarantine Guard 35520 | -3/Quarantine | Destroyed Quarantine Guard 35533 | -3/Quarantine | Identified exit to Research 35750 | -3/Quarantine | Found Prototype Processor 35794 | -3/Quarantine | Identified Vortex Chain Reactor 35800 | -3/Quarantine | Identified Exp. Signal Interpreter 35957 | -3/Quarantine | Spotted Quarantine Guard 35979 | -3/Quarantine | Destroyed Quarantine Guard 36165 | -3/Quarantine | Spotted Quarantine Guard 36180 | -3/Quarantine | Destroyed Quarantine Guard 36259 | -3/Quarantine | Spotted Quarantine Guard 36272 | -3/Quarantine | Destroyed Quarantine Guard 36509 | -3/Quarantine | Spotted Quarantine Guard 36518 | -3/Quarantine | Destroyed Quarantine Guard 36837 | -3/Quarantine | Build established: Scavenger-Gunner 36852 | -3/Quarantine | Met incapacitated Sigix Warrior 36852 | -3/Quarantine | Lockdown squad dispatched 36880 | -3/Quarantine | Acquired the access code to the Sigix quarantine chamber 37001 | -3/Quarantine | Spotted Lightning 37002 | -3/Quarantine | Destroyed Lightning 37006 | -3/Quarantine | Spotted Lightning 37179 | -3/Quarantine | Build established: Scavenger-Tank 37800 | -3/Quarantine | Destroyed Lightning 37817 | -3/Quarantine | Spotted Lightning 37829 | -3/Quarantine | Destroyed Lightning 38495 | -3/Quarantine | Found Alien Artifact 38887 | -3/Quarantine | Identified Core Reset Matrix 38958 | -3/Quarantine | Build established: Scavenger-Gunner 39236 | -3/Quarantine | Found Exp. EM Shield 39347 | -3/Quarantine | Found Exp. Phase Shifter 39360 | -3/Quarantine | Build established: Scavenger-Skirmisher 39834 | -3/Quarantine | Found Alien Energy Cannon 39883 | -3/Quarantine | Entered Research 39883 | -2/Research | Warlord forces began assault on 0b10 39883 | -2/Research | Evolved 2 slots: Propulsion x1, Utility x1 39993 | -2/Research | Research machine network offline 40150 | -2/Research | Met up with Warlord 40170 | -2/Research | Borebot progress halted 40308 | -2/Research | Discovered new exit (range 17) 40352 | -2/Research | Identified exit to Testing 40358 | -2/Research | Borebot progress halted 40489 | -2/Research | Borebot progress halted 40603 | -2/Research | Discovered exit to Testing (range 21) 40606 | -2/Research | Found Prototype Device 40606 | -2/Research | Identified Adv. Kinecellerator 40617 | -2/Research | Found Exp. Targeting Computer 40912 | -2/Research | Warlord invited to help at Command 40912 | -2/Research | Given Cave Seal Controls access code 40966 | -2/Research | Entered Testing 40979 | -2/Testing | Found Prototype Energy Cannon 40979 | -2/Testing | Identified Hpw. Disruptor Cannon 41007 | -2/Testing | Found Prototype Energy Cannon 41099 | -2/Testing | Lost 4 allies 41360 | -2/Testing | Discovered new exit (range 14) 41481 | -2/Testing | Identified exit to Access 41616 | -2/Testing | Found Prototype Energy Cannon 41616 | -2/Testing | Identified Cld. Nova Cannon 41649 | -2/Testing | Found Prototype Protection 41649 | -2/Testing | Identified Hvy. Regenerative Plating 41670 | -2/Testing | Build established: Scavenger-Gunner 41679 | -2/Testing | Found Prototype Ballistic Gun 41679 | -2/Testing | Identified Hyp. Multirail 41888 | -2/Testing | Destroyed 7 combat bots 41907 | -2/Testing | Entered Access 41907 | -1/Access | Evolved 2 slots: Power x1, Utility x1 42058 | -1/Access | Lost 5 allies 42499 | -1/Access | Discovered new exit (range 8) 42506 | -1/Access | Identified exit to Command 42606 | -1/Access | Entered Command 42714 | -1/Command | Build established: Scavenger-Skirmisher 42846 | -1/Command | Spotted M Guard 42847 | -1/Command | Spotted M Guard 42847 | -1/Command | Spotted Combat Programmer 42848 | -1/Command | Spotted Combat Programmer 42894 | -1/Command | Identified Imp. Potential Cannon 42935 | -1/Command | Met MAIN.C 42939 | -1/Command | 0b10 Conduit disabled 42986 | -1/Command | System corruption reached 10% 42995 | -1/Command | Lost 3 parts (1n2u) 42997 | -1/Command | Destroyed MAIN.C Shell 43000 | -1/Command | MAIN.C activated Command garrisons 43000 | -1/Command | Surrendered to MAIN.C 43000 | -1/Command | Loaded intel: 63 machine locations 43000 | -1/Command | Loaded intel: 114 trap records 43000 | -1/Command | Identified exit to Surface 43000 | -1/Command | Discovered exit to Surface (range 45) 43000 | -1/Command | Discovered exit to Surface (range 85) 43056 | -1/Command | Found Prototype Launcher 43056 | -1/Command | Identified Z-bomb Delivery System 43074 | -1/Command | Found Prototype Device 43074 | -1/Command | Identified Exp. System Purifier 43078 | -1/Command | Found Prototype Device 43079 | -1/Command | Identified Exp. Force Field 43083 | -1/Command | Found Exp. Weapon Cycler 43088 | -1/Command | Found Prototype Reactor 43088 | -1/Command | Identified Zero-point Reactor 43091 | -1/Command | Found Vortex Chain Reactor 43116 | -1/Command | Identified Transdimensional Reconstructor 43116 | -1/Command | Failed to warp due to unstable space 43271 | -1/Command | MAIN.C activated Command garrisons 43311 | -1/Command | Unknown forces attacked Command 43311 | -1/Command | Spotted EQ-009 43311 | -1/Command | Spotted EQ-006 43311 | -1/Command | Spotted EQ-002 43311 | -1/Command | Spotted EQ-004 43311 | -1/Command | Spotted EQ-000 43311 | -1/Command | Spotted EQ-001 43311 | -1/Command | Spotted EQ-003 43312 | -1/Command | Spotted EQ-005 43327 | -1/Command | Destroyed EQ-003 43332 | -1/Command | Destroyed EQ-009 43337 | -1/Command | Destroyed EQ-004 43366 | -1/Command | Lost 3 allies 43370 | -1/Command | Build established: Scavenger-Gunner 43409 | -1/Command | Spotted EQ-019 43409 | -1/Command | Spotted EQ-033 43409 | -1/Command | Spotted EQ-023 43409 | -1/Command | Spotted EQ-020 43409 | -1/Command | Spotted EQ-021 43409 | -1/Command | Spotted EQ-018 43409 | -1/Command | Spotted EQ-022 43427 | -1/Command | Destroyed EQ-020 43511 | -1/Command | Spotted EQ-027 43521 | -1/Command | Spotted EQ-040 43528 | -1/Command | Spotted EQ-039 43550 | -1/Command | Spotted EQ-041 43551 | -1/Command | Spotted EQ-038 43554 | -1/Command | Spotted EQ-035 43564 | -1/Command | Destroyed EQ-038 43604 | -1/Command | Spotted EQ-055 43606 | -1/Command | Spotted EQ-050 43609 | -1/Command | Destroyed EQ-050 43609 | -1/Command | Spotted EQ-051 43614 | -1/Command | Spotted EQ-056 43619 | -1/Command | Destroyed EQ-055 43626 | -1/Command | Destroyed EQ-056 43629 | -1/Command | Lost 5 allies 43637 | -1/Command | Destroyed EQ-051 43640 | -1/Command | Spotted EQ-067 43640 | -1/Command | Spotted EQ-061 43640 | -1/Command | Spotted EQ-062 43640 | -1/Command | Spotted EQ-060 43651 | -1/Command | Destroyed EQ-060 43655 | -1/Command | Spotted EQ-029 43656 | -1/Command | Destroyed EQ-062 43658 | -1/Command | All MAIN.C guards destroyed 43660 | -1/Command | Spotted EQ-048 43660 | -1/Command | Destroyed EQ-029 43681 | -1/Command | Destroyed 7 combat bots 43687 | -1/Command | Destroyed EQ-048 43697 | -1/Command | Destroyed EQ-067 43701 | -1/Command | Spotted EQ-076 43715 | -1/Command | Spotted EQ-064 43720 | -1/Command | Spotted EQ-030 43724 | -1/Command | Spotted EQ-063 43726 | -1/Command | Destroyed EQ-030 43731 | -1/Command | Destroyed EQ-076 43740 | -1/Command | Destroyed EQ-063 43751 | -1/Command | Spotted EQ-084 43751 | -1/Command | Spotted EQ-085 43751 | -1/Command | Spotted EQ-087 43751 | -1/Command | Spotted EQ-086 43780 | -1/Command | Destroyed EQ-064 43784 | -1/Command | Spotted EQ-102 43785 | -1/Command | Spotted EQ-104 43789 | -1/Command | Destroyed EQ-086 43791 | -1/Command | Core integrity fell below 50% 43792 | -1/Command | Destroyed EQ-104 43802 | -1/Command | Destroyed EQ-102 43803 | -1/Command | Attackers retreated from Command 43804 | *** | Fortifying 0b10! Last Messages --------------- 43795_ EQ-102 knocked back. 43797_ K-01 Serf collects debris. 43798_ EQ-084 suffers critical hit (Blast). 43798_ EQ-084 knocked back. 43799_ Destroyed Imp. Shock Absorption System. 43799_ EQ-102 knocked back. 43800_ K-01 Serf collects debris. 43800_ Penetrated by Slug. 43800_ Hcl. Linear Accelerator destroyed. 43802_ EQ-102 destroyed. 43803_ ALERT: Enemy forces retreating. 43803_ K-01 Serf collects debris. MAIN.C: I admit your assistance was pivotal here. It looks like I was right to trust you. This attack appears to have been designed to merely test our defenses, although it was nearly effective enough to force me to take the conflict to the next level. Investigating the origins of these bots should be one of our highest priorities... [Achievement: True Cogmind] Map ----- +----------------------------------------------------+ | #????# # #????????????????????????????????# | | ######+#########????????????????????????????????# | | # #??????????????????????????????????# | | # #??????????????????????????????????# | | + #??????????????????????????????????# | | # = #??????????????????????????????????# | | # #??????????????????????????????????# | | # #???###########################????# | | # "" #???#?????????????????????????#????# | | # """" #???#?#######################?#????# | | # """" #???#?#"" ######## | | # "" #???#?#" % % % #?#????? | | # #???#?#" % % % ######## | | # #???#?#" % % % | | #######+####+#???#?# % = % % % % | | #?# #???#?#" !%! % % | | #?# #???#?#" k %! ] !=######## | | #?# #???#?# = % #?#????? | | #?# #???#?# *= ######## | | ### ##??#?# ![ #?#????# | | #??#?# #?#????# | | #??#?# "#?#????# | | #??#?# "#?#????# | | % % #??#?# * #?#????# | | %%%% =###### #?#????# | | % %!% |[ *= ! @ #?#????# | | %% !% != ! ! #?#????# | | %!%%% %!! ! % %M #?#????# | | ######%"""%;%;;;#### #?#????# | | #??????#% %%! #?#?# [" ! % "#?#????# | | ###????## #?#?# %%" #?#????# | | #?????# #?#?#######################?#????# | | < #?????#^^ ^ #?#?????????????????????????#????# | | #?????# #?###########################????# | | ####?????# #????????????????????????????????# | | ?????????#####"##????????????????????????????????# | | ?????????????# #???###???????????????????????????# | | ##############"#####"####????????????????????????# | | #????????????????????????# | | T#????????????????????????# | | ###### ##????????????????????????# | | !! #?#### ##????????????????????????# | | !! #?#] #????????????????????????# | | !! #?#] ] #????????????????????????# | | #?# !! #????????????????????????# | | = #?# ! #????????????????????????# | | "" #?#########????????????????????????# | | "" ]] #??????????????????????????????????# | | "T ]! #??????????????????????????????????# | | "" ###?????????????????????????????????# | +----------------------------------------------------+ Best States ------------- Heat Dissipation 136 Coolant Potential 120 Energy Generation 93 Energy Capacity 950 Matter Stores 300 Matter Capacity 300 Sight Range 24 Robot Scan Range 18 Terrain Scan Density 10 Jamming Range 16 Cloak Strength 4 Base Temperature (-) 200 Armor Coverage 1800 Resistance: KI 30 Resistance: TH 15 Resistance: EM 75 Point Defense Rating 240 Weapon Cycling 30 Phase Shifting 20 Evasion (%) 89 Targeting Accuracy 24 Core Analysis 8 Recoil Reduction 6 Kinecelleration 50 Offensive Hacking 14 Defensive Hacking 10 Authchip Count 2 Item Schematics ----------------- Hcp. Storage Unit | -8/Storage | Hacked Hacking Suite | -8/Storage | Hacked Plasma Cutter | -6/Factory | Hacked Assault Drone Bay | -4/Zhirov | Free Exp. Heat Sink | -4/Zhirov | Free Exp. Optical Array | -4/Zhirov | Free Imp. Arc Thrower | -4/Zhirov | Free Arm. Heavy Treads | -3/Research | Hacked Enh. Flexi-carbon Leg | -3/Quarantine | Archive Proton Burst Cannon | -3/Quarantine | Archive Hellfire Missile Launcher | -3/Quarantine | Archive Exp. Thermal Shield | -3/Quarantine | Archive Centrium Heavy Treads | -3/Quarantine | Archive Shock Maul | -2/Testing | Archive Hds. Centrium Wheel | -2/Testing | Archive Adv. Kinecellerator | -2/Testing | Archive Robot Schematics ------------------ W-44 Eye | -3/Quarantine | Archive A-27 Freighter | -3/Quarantine | Archive A-02 Transporter | -3/Quarantine | Archive T-07 Excavator | -2/Testing | Archive Fabricated ------------ Plasma Cutter | x2 | -6/Factory | Authchip Repaired ---------- Lgt. Armor Plating | 32% | -10/Materials Imp. Light Armor Plating | 15% | -8/Storage Hvy. Armor Plating | 35% | -6/Factory Alien Tech Used ----------------- Integrated Reactor Transdimensional Reconstructor Achievements -------------- True Cogmind Challenges ------------ None Game ------ Seed GaussSuspensionDevice Manual? 0 Play Time 07:33:02 Cumulative 536.5 hours Start 2025.07.15 @ 16:38:03 End 2025.07.17 @ 13:16:15 Sessions 9 Manual Loads 0 Difficulty Rogue Special Mode None Game No. 232 Rogue 232 Adventurer 0 Explorer 0 Win Type 8 Total 25 Types 7/4/7/2/1/0/1/1/1/1 Lore% 90 Gallery% 87 Achievement% 80 Wizard Run 0 Options --------- Layout 0 ASCII 0 Keyboard 0 Movement Arrows Keybinds 0 Fullscreen 2 Font 18/SmallcapsGlow Map View 76x50 Zoom Use 0% Tactical HUD 1 Map Filters NONE Filters NONE Steam 1 RUN: 0ee617c8-d2fd-4a21-9418-56699282b936